Workbook

Sheet Standard - P&L
B7: Profit & Loss Statement - Standard Scenario - Unconsolidated
B9: INSTRUCTIONS - HIDE THIS LINE BEFORE PRINT | C9: NY Budget | D9: New Projection | E9: New Projection | F9: New Projection | G9: New Projection | H9: New Projection | I9: New Projection | J9: New Projection | K9: New Projection | L9: New Projection
B10: For the period ended 30 June | C10: 2020 | D10: =C10+1 -> 2021 | E10: 2022 | F10: 2023 | G10: 2024 | H10: 2025 | I10: 2026 | J10: 2027 | K10: 2028 | L10: 2029
C11: $'000 | D11: $'000 | E11: $'000 | F11: $'000 | G11: $'000 | H11: $'000 | I11: $'000 | J11: $'000 | K11: $'000 | L11: $'000
B12: Revenue
B13: Rates & Annual Charges | C13: 59086.803 | D13: 60717.72307 | E13: 62389.41615 | F13: 64102.90156 | G13: 65859.22409 | H13: 67659.4547 | I13: 69504.69106 | J13: 71396.05834 | K13: 73334.7098 | L13: 75321.82754
B14: User Fees and Charges | C14: 26455.71047 | D14: 27268.48824 | E14: 28289.11944 | F14: 29345.44643 | G14: 30421.10159 | H14: 31181.62913 | I14: 31961.16986 | J14: 32760.1991 | K14: 33579.20408 | L14: 34418.68418
B15: Interest & Investment Revenue | C15: 1131.125 | D15: 927.2242263 | E15: 893.9714789 | F15: 899.3048335 | G15: 903.4438531 | H15: 937.853083 | I15: 1002.517591 | J15: 1056.880029 | K15: 1119.340493 | L15: 1183.148865
B16: Other Revenues | C16: 9068.843738 | D16: 9358.396147 | E16: 9592.567736 | F16: 9832.399619 | G16: 10078.43796 | H16: 10330.43301 | I16: 10588.66646 | J16: 10853.18586 | K16: 11131.26372 | L16: 11435.65267
B17: Operating Grants and Contributions | C17: 12339.40586 | D17: 12647.89101 | E17: 12964.08828 | F17: 13288.19049 | G17: 13620.39525 | H17: 13960.90513 | I17: 14309.92776 | J17: 14667.67595 | K17: 15034.36785 | L17: 15410.22705
B18: Capital Grants and Contributions | C18: 5865.51 | D18: 5982.8202 | E18: 6102.476604 | F18: 6224.526136 | G18: 6349.016659 | H18: 6475.996992 | I18: 6605.516932 | J18: 6737.62727 | K18: 6872.379816 | L18: 7009.827412
B19: Gain on Sale of assets | C19: 250 | D19: 250 | E19: 250 | F19: 250 | G19: 250 | H19: 250 | I19: 250 | J19: 250 | K19: 250 | L19: 250
B20: Total Revenue | C20: =SUM(C13:C19) -> 114197.3981 | D20: 117152.5429 | E20: 120481.6397 | F20: 123942.7691 | G20: 127481.6194 | H20: 130796.272 | I20: 134222.4897 | J20: 137721.6266 | K20: 141321.2658 | L20: 145029.3677
B22: Operating Expenses
B23: Employee Benefits & On-Costs | C23: 44144.00638 | D23: 45922.34163 | E23: 47520.59484 | F23: 49102.88457 | G23: 50121.84297 | H23: 51829.14429 | I23: 53299.69452 | J23: 55318.20758 | K23: 56031.46084 | L23: 58265.73943
B24: Borrowing Costs | C24: 532.8857916 | D24: 515.9905828 | E24: 423.411803 | F24: 342.1389015 | G24: 267.4977704 | H24: 234.1123546 | I24: 216.4251248 | J24: 198.0721902 | K24: 179.5064889 | L24: 155.2915882
B25: Materials & Contracts | C25: 40113.11048 | D25: 41615.93824 | E25: 42143.8367 | F25: 43225.93262 | G25: 44328.08093 | H25: 46186.28295 | I25: 46827.19003 | J25: 48047.86978 | K25: 49349.06652 | L25: 51182.79319
B26: Depreciation & Amortisation | C26: 13853.07635 | D26: 14047.41332 | E26: 14487.6072 | F26: 15071.12579 | G26: 15150.68682 | H26: 15234.44613 | I26: 15320.71527 | J26: 15411.3654 | K26: 15520.31482 | L26: 15672.66208
B27: Amortisation - intangibles | C27: 262.741512 | D27: 294.1932096 | E27: 321.4545677 | F27: 345.4161541 | G27: 366.7917358 | H27: 386.1536715 | I27: 403.9612271 | J27: 420.5832288 | K27: 436.3161863 | L27: 451.3987925
B28: Other | C28: 7712.098825 | D28: 7905.926296 | E28: 8103.574453 | F28: 8334.663814 | G28: 8564.53041 | H28: 8978.64367 | I28: 9253.109762 | J28: 9534.437506 | K28: 9872.798443 | L28: 10119.6184
B29: Total Operating Expenses | C29: =SUM(C23:C28) -> 106617.9193 | D29: =SUM(D23:D28) -> 110301.8033 | E29: =SUM(E23:E28) -> 113000.4796 | F29: 116422.1618 | G29: 118799.4306 | H29: 122848.7831 | I29: 125321.0959 | J29: 128930.5357 | K29: 131389.4633 | L29: 135847.5035
B31: Operating Surplus / (Deficit) | C31: =C20-C29 -> 7579.478738 | D31: =D20-D29 -> 6850.73961 | E31: 7481.160134 | F31: 7520.607224 | G31: 8682.188772 | H31: 7947.488972 | I31: 8901.393738 | J31: 8791.090867 | K31: 9931.802464 | L31: =L20-L29 -> 9181.86424
B33: Other Comprehensive Income | C33: 0 | D33: 0 | E33: 0 | F33: 0 | G33: 0 | H33: 0 | I33: 0 | J33: 0 | K33: 0 | L33: 0
B35: Total Comprehensive Income | C35: =SUM(C31:C34) -> 7579.478738 | D35: =SUM(D31:D34) -> 6850.73961 | E35: 7481.160134 | F35: 7520.607224 | G35: 8682.188772 | H35: 7947.488972 | I35: 8901.393738 | J35: 8791.090867 | K35: 9931.802464 | L35: =SUM(L31:L34) -> 9181.86424
B37: Net Operating Result before Capital Grants | C37: =+C35-C18 -> 1713.968738 | D37: 867.9194099 | E37: 1378.68353 | F37: 1296.081088 | G37: 2333.172113 | H37: 1471.49198 | I37: 2295.876806 | J37: 2053.463596 | K37: 3059.422648 | L37: 2172.036828
B39: Adjustments for Underlying Result
B40: Gain on Sale of assets | C40: -250 | D40: -250 | E40: -250 | F40: -250 | G40: -250 | H40: -250 | I40: -250 | J40: -250 | K40: -250 | L40: -250
B41: Investment property fair value increases | C41: -786.675 | D41: -996.02325 | E41: -1025.903948 | F41: -1056.681066 | G41: -1088.381498 | H41: -1121.032943 | I41: -1154.663931 | J41: -1189.303849 | K41: -1224.982965 | L41: -1261.732453
B42: NAP Profit | C42: 0 | D42: 0 | E42: 0 | F42: 0 | G42: 0 | H42: 0 | I42: 0 | J42: 0 | K42: 0 | L42: 0
B43: Local election costs | C43: 0 | D43: 500 | E43: 0 | F43: 0 | G43: 0 | H43: 550 | I43: 0 | J43: 0 | K43: 0 | L43: 600
B44: NAP dividend
B45: Underlying result | C45: =SUM(C37:C44) -> 677.293738 | D45: =SUM(D37:D44) -> 121.8961599 | E45: 102.7795825 | F45: -10.5999776 | G45: 994.7906155 | H45: 650.4590369 | I45: 891.212875 | J45: 614.1597471 | K45: 1584.439683 | L45: =SUM(L37:L44) -> 1260.304374

Sheet Standard - Balance Sheet
B7: Balance Sheet - Standard Scenario - Unconsolidated
B8: ='Standard - P&L'!B9 -> INSTRUCTIONS - HIDE THIS LINE BEFORE PRINT | C8: New Projection | D8: New Projection | E8: New Projection | F8: New Projection | G8: New Projection | H8: New Projection | I8: New Projection | J8: New Projection | K8: New Projection | L8: New Projection
B10: As at 30 June | C10: 2020 | D10: =C10+1 -> 2021 | E10: =D10+1 -> 2022 | F10: =E10+1 -> 2023 | G10: 2024 | H10: 2025 | I10: 2026 | J10: 2027 | K10: 2028 | L10: 2029
C11: $'000 | D11: $'000 | E11: $'000 | F11: $'000 | G11: $'000 | H11: $'000 | I11: $'000 | J11: $'000 | K11: =J11 -> $'000 | L11: =K11 -> $'000
B12: ASSETS
B13: Current Assets
B14: Cash and Cash Equivalents | C14: 9784.96905 | D14: 8454.859156 | E14: 8668.193341 | F14: 8833.754123 | G14: 10210.12332 | H14: 12796.70366 | I14: 14971.20114 | J14: 17469.61971 | K14: 20021.95459 | L14: 23613.24133
B15: Investments | C15: 27304 | D15: 27304 | E15: 27304 | F15: 27304 | G15: 27304 | H15: 27304 | I15: 27304 | J15: 27304 | K15: 27304 | L15: 27304
B16: Receivables | C16: 9788.191934 | D16: 10063.41023 | E16: 10364.26239 | F16: 10673.65385 | G16: 10990.07209 | H16: 11280.1989 | I16: 11577.57887 | J16: 11882.39334 | K16: 12194.82817 | L16: 12515.07388
B17: Inventories | C17: 3875 | D17: 3875 | E17: 3875 | F17: 3875 | G17: 3875 | H17: 3875 | I17: 3875 | J17: 3875 | K17: 3875 | L17: 3875
B19: Total Current Assets | C19: =SUM(C14:C17) -> 50752.16098 | D19: 49697.26939 | E19: 50211.45573 | F19: 50686.40797 | G19: 52379.19542 | H19: 55255.90255 | I19: 57727.78001 | J19: 60531.01305 | K19: 63395.78277 | L19: =SUM(L14:L17) -> 67307.31521
B21: Non Current Assets
B22: Investments | C22: 0 | D22: =C22 -> 0 | E22: 0 | F22: 0 | G22: 0 | H22: 0 | I22: 0 | J22: 0 | K22: 0 | L22: 0
B23: Receivables | C23: 0 | D23: 0 | E23: 0 | F23: 0 | G23: 0 | H23: 0 | I23: 0 | J23: 0 | K23: 0 | L23: 1
B24: Infrastructure, Property, Plant & Equipment | C24: 873352.2278 | D24: 877515.5295 | E24: 881682.9809 | F24: 885722.1476 | G24: 890148.145 | H24: 894968.2074 | I24: 900191.5386 | J24: 905825.7597 | K24: 911864.8685 | L24: 918278.0673
B25: Inventories | C25: 16651 | D25: 16651 | E25: 16651 | F25: 16651 | G25: 16651 | H25: 16651 | I25: 16651 | J25: 16651 | K25: 16651 | L25: 16651
B26: Investment Properties | C26: 33200.775 | D26: 34196.79825 | E26: 35222.7022 | F26: 36279.38326 | G26: 37367.76476 | H26: 38488.7977 | I26: 39643.46164 | J26: 40832.76548 | K26: 42057.74845 | L26: 43319.4809
B27: Intangibles | C27: 1060.966048 | D27: 1187.022838 | E27: 1296.324521 | F27: 1392.433523 | G27: 1478.205072 | H27: 1555.928768 | I27: 1627.441842 | J27: 1694.219773 | K27: 1757.448774 | L27: 1818.0838
B28: Total Non Current Assets | C28: =SUM(C22:C27) -> 924264.9688 | D28: 929550.3506 | E28: 934853.0077 | F28: 940044.9644 | G28: 945645.1149 | H28: 951663.9339 | I28: 958113.4421 | J28: 965003.7449 | K28: 972331.0658 | L28: 980067.632
B29: Total Assets | C29: =C28+C19 -> 975017.1298 | D29: 979247.6199 | E29: 985064.4634 | F29: 990731.3724 | G29: 998024.3103 | H29: 1006919.836 | I29: 1015841.222 | J29: 1025534.758 | K29: 1035726.849 | L29: 1047374.947
B31: LIABILITIES
B32: Current Liabilities
B33: Trade & Other Payables | C33: 7220.359886 | D33: 6850.868884 | E33: 7585.890606 | F33: 7780.667871 | G33: 7979.054568 | H33: 8313.530932 | I33: 8428.894205 | J33: 8648.61656 | K33: 8882.831974 | L33: 9212.902774
B34: Borrowings | C34: 3237.496221 | D34: 2410.536558 | E34: 2497.369896 | F34: 2013.929462 | G34: 652.4588597 | H34: 677.1915801 | I34: 702.8687402 | J34: 787.5808834 | K34: 521.0518083 | L34: 521.0518083
B35: Provisions | C35: 12657.32201 | D35: 12823.29219 | E35: 11962.65382 | F35: 11516.03438 | G35: 11020.79817 | H35: 11345.6486 | I35: 10951.84646 | J35: 11340.11092 | K35: 11134.62772 | L35: 12776.52416
B36: Other Current Liabilities | C36: 0 | D36: 0 | E36: 0 | F36: 0 | G36: 0 | H36: 0 | I36: 0 | J36: 0 | K36: 0 | L36: 1
B37: Total Current Liabilities | C37: =SUM(C33:C36) -> 23115.17812 | D37: 22084.69764 | E37: 22045.91432 | F37: 21310.63171 | G37: 19652.31159 | H37: 20336.37111 | I37: 20083.6094 | J37: 20776.30836 | K37: 20538.51151 | L37: =SUM(L33:L36) -> 22511.47874
B39: Non Current Liabilities
B40: Trade & Other Payables | C40: 0 | D40: 0 | E40: 0 | F40: 0 | G40: 0 | H40: 0 | I40: 0 | J40: 0 | K40: 0 | L40: 0
B41: Borrowings | C41: 12400.13832 | D41: 9989.601761 | E41: 7492.231865 | F41: 5478.302403 | G41: 4825.843543 | H41: 4148.651963 | I41: 3445.783223 | J41: 2658.202339 | K41: 2137.150531 | L41: 1616.098723
B42: Provisions | C42: 810.0111313 | D42: 1630.778682 | E42: 2502.615207 | F42: 3398.129037 | G42: 4319.657148 | H42: 5260.826377 | I42: 6236.44877 | J42: 7233.775698 | K42: 8252.912459 | L42: 9267.231447
B43: Other Non-current Liabilities | C43: 0 | D43: 0 | E43: 0 | F43: 0 | G43: 0 | H43: 0 | I43: 0 | J43: 0 | K43: 0 | L43: 1
B44: Total Non Current Liabilities | C44: =SUM(C40:C43) -> 13210.14945 | D44: 11620.38044 | E44: 9994.847072 | F44: 8876.43144 | G44: 9145.500691 | H44: 9409.47834 | I44: 9682.231993 | J44: 9891.978037 | K44: =SUM(K40:K43) -> 10390.06299 | L44: =SUM(L40:L43) -> 10884.33017
B45: Total Liabilities | C45: =C44+C37 -> 36325.32757 | D45: 33705.07808 | E45: 32040.76139 | F45: 30187.06315 | G45: 28797.81229 | H45: 29745.84945 | I45: 29765.8414 | J45: 30668.2864 | K45: 30928.5745 | L45: =L44+L37 -> 33395.80891
B46: Net Assets | C46: =C29-C45 -> 938691.8023 | D46: 945542.5419 | E46: 953023.702 | F46: 960544.3092 | G46: 969226.498 | H46: 977173.987 | I46: 986075.3807 | J46: 994866.4716 | K46: 1004798.274 | L46: =L29-L45 -> 1013979.138
B48: EQUITY
B49: Accumulated Surplus | C49: 570134.2503 | D49: 576983.9899 | E49: 584466.1501 | F49: 591986.7573 | G49: 600668.9461 | H49: 608615.435 | I49: 617517.8288 | J49: 626308.9196 | K49: 636240.7221 | L49: 645420.5863
B50: Asset Revaluation Reserves | C50: 368559 | D50: 368559 | E50: 368559 | F50: 368559 | G50: 368559 | H50: 368559 | I50: 368559 | J50: 368559 | K50: 368559 | L50: 368559
B51: Total Equity | C51: =SUM(C49:C50) -> 938693.2503 | D51: 945542.9899 | E51: 953025.1501 | F51: 960545.7573 | G51: 969227.9461 | H51: 977174.435 | I51: 986076.8288 | J51: 994867.9196 | K51: 1004799.722 | L51: 1013979.586
B54: Variance | C54: =C51-C46 -> 1.448062835 | D54: 0.4480628347 | E54: 1.448062835 | F54: 1.448062835 | G54: 1.448062835 | H54: 0.4480628348 | I54: 1.448062835 | J54: 1.448062835 | K54: 1.448062835 | L54: 0.4480628344

Sheet Standard - Cashflow
B7: Cashflow Statement - Standard Scenario - Unconsolidated
B8: ='Standard - P&L'!B9 -> INSTRUCTIONS - HIDE THIS LINE BEFORE PRINT | C8: New Projection | D8: New Projection | E8: New Projection | F8: New Projection | G8: New Projection | H8: New Projection | I8: New Projection | J8: New Projection | K8: New Projection | L8: New Projection
B10: For the period ended 30 June | C10: 2020 | D10: =C10+1 -> 2021 | E10: 2022 | F10: 2023 | G10: 2024 | H10: 2025 | I10: 2026 | J10: 2027 | K10: 2028 | L10: 2029
B11: Cash Flows from Operating Activities | C11: $'000 | D11: $'000 | E11: $'000 | F11: $'000 | G11: $'000 | H11: $'000 | I11: $'000 | J11: $'000 | K11: $'000 | L11: $'000
B12: Receipts:
B14: Rates & Annual Charges | C14: 60081.41182 | D14: 60442.50478 | E14: 62088.564 | F14: 63793.5101 | G14: 65542.80585 | H14: 67369.32789 | I14: 69207.31109 | J14: 71091.24387 | K14: 73022.27497 | L14: 75000.58184
B15: User Charges & Fees | C15: 26455.71047 | D15: 27268.48824 | E15: 28289.11944 | F15: 29345.44643 | G15: 30421.10159 | H15: 31181.62913 | I15: 31961.16986 | J15: 32760.1991 | K15: 33579.20408 | L15: 34418.68418
B16: Interest & Investment Revenue Received | C16: 1131.125 | D16: 927.2242263 | E16: 893.9714789 | F16: 899.3048335 | G16: 903.4438531 | H16: 937.853083 | I16: 1002.517591 | J16: 1056.880029 | K16: 1119.340493 | L16: 1183.148865
B17: Grants & Contributions | C17: 16062.91586 | D17: 16445.87121 | E17: 16838.02809 | F17: 17239.60909 | G17: 17650.84222 | H17: 18071.96104 | I17: 18503.20479 | J17: 18944.81852 | K17: 19397.05328 | L17: 19860.16618
B18: Bonds & Deposits Received
B19: Other | C19: 8282.168738 | D19: 8362.372897 | E19: 8566.663788 | F19: 8775.718554 | G19: 8990.056459 | H19: 9209.400066 | I19: 9434.002531 | J19: 9663.882008 | K19: 9906.280757 | L19: 10173.92021
B20: Payments:
B21: Employee Benefits & On-Costs | C21: -45406.708 | D21: -46909.07936 | E21: -47531.793 | F21: -49551.77895 | G21: -50548.13487 | H21: -53095.16394 | I21: -53881.51477 | J21: -56703.79897 | K21: -56845.1144 | L21: -60921.95486
B22: Materials & Contracts | C22: -40038.42909 | D22: -41246.44724 | E22: -42878.85842 | F22: -43420.70988 | G22: -44526.46763 | H22: -46520.75932 | I22: -46942.5533 | J22: -48267.59213 | K22: -49583.28194 | L22: -51513.86399
B23: Borrowing Costs | C23: -532.8857916 | D23: -515.9905828 | E23: -423.411803 | F23: -342.1389015 | G23: -267.4977704 | H23: -234.1123546 | I23: -216.4251248 | J23: -198.0721902 | K23: -179.5064889 | L23: -155.2915882
B24: Bonds & Deposits Refunded
B25: Other | C25: -5336.058361 | D25: -6671.432832 | E25: -6611.134703 | F25: -7047.32051 | G25: -7315.173215 | H25: -5777.651627 | I25: -7858.742704 | J25: -6323.810015 | K25: -7777.060485 | L25: -4145.045953
B26: Net Cash provided (or used in) Operating Activities | C26: ='[3]cashflow note'!C62 -> 20699.25065 | D26: ='[3]cashflow note'!D62 -> 18103.51133 | E26: ='[3]cashflow note'!E62 -> 19231.14887 | F26: ='[3]cashflow note'!F62 -> 19691.64076 | G26: ='[3]cashflow note'!G62 -> 20850.97649 | H26: ='[3]cashflow note'!H62 -> 21142.48397 | I26: ='[3]cashflow note'!I62 -> 21208.96996 | J26: ='[3]cashflow note'!J62 -> 22023.75022 | K26: ='[3]cashflow note'!K62 -> 22639.19026 | L26: ='[3]cashflow note'!L62 -> 23900.3449
B29: Cash Flows from Investing Activities
B30: Receipts:
B31: Sale of Investment Securities
B32: Sale of Investment Property
B33: Sale of Real Estate Assets | C33: 0 | D33: 0 | E33: 0 | F33: 0 | G33: 0 | H33: 0 | I33: 0 | J33: 0 | K33: 0 | L33: 0
B34: Sale of Infrastructure, Property, Plant & Equipment | C34: 250 | D34: 250 | E34: 250 | F34: 250 | G34: 250 | H34: 250 | I34: 250 | J34: 250 | K34: 250 | L34: 250
B35: Payments:
B36: Purchase of Investment Securities
B37: Purchase of Investment Property
B38: Purchase of Infrastructure, Property, Plant & Equipment | C38: -15635 | D38: -16025.875 | E38: -16426.52187 | F38: -16837.18492 | G38: -17258.11454 | H38: -17689.56741 | I38: -18131.80659 | J38: -18585.10176 | K38: -19049.7293 | L38: -19525.97254
B39: Purchase of Intangible Assets | C39: -410 | D39: -420.25 | E39: -430.75625 | F39: -441.5251562 | G39: -452.5632852 | H39: -463.8773673 | I39: -475.4743015 | J39: -487.361159 | K39: -499.545188 | L39: -512.0338177
B40: Net Cash provided (or used in) Investing Activities | C40: =SUM(C31:C39) -> -15795 | D40: =SUM(D31:D39) -> -16196.125 | E40: =SUM(E31:E39) -> -16607.27812 | F40: =SUM(F32:F39) -> -17028.71008 | G40: =SUM(G32:G39) -> -17460.67783 | H40: -17903.44478 | I40: -18357.2809 | J40: -18822.46292 | K40: -19299.27449 | L40: -19788.00635
B43: Cash Flows from Financing Activities
B44: Receipts:
B45: Proceeds from Borrowings & Advances | C45: 6500 | D45: 0 | E45: 0 | F45: 0 | G45: 0 | H45: 0 | I45: 0 | J45: 0 | K45: 0 | L45: 0
B46: Proceeds from Finance Leases
B47: Other Financing Activity Receipts
B49: Payments:
B50: Repayment of Borrowings & Advances | C50: -3301.813523 | D50: -3237.496221 | E50: -2410.536558 | F50: -2497.369896 | G50: -2013.929462 | H50: -652.4588597 | I50: -677.1915801 | J50: -702.8687402 | K50: -787.5808834 | L50: -521.0518083
B51: Net Cash Flow provided (used in) Financing Activities | C51: =SUM(C45:C50) -> 3198.186477 | D51: -3237.496221 | E51: -2410.536558 | F51: -2497.369896 | G51: -2013.929462 | H51: -652.4588597 | I51: -677.1915801 | J51: -702.8687402 | K51: -787.5808834 | L51: -521.0518083
B53: Net Increase/(Decrease) in Cash & Cash Equivalents | C53: =+C26+C40+C51 -> 8102.437124 | D53: -1330.109894 | E53: 213.3341855 | F53: 165.560782 | G53: 1376.369198 | H53: 2586.580337 | I53: 2174.497485 | J53: 2498.418565 | K53: 2552.334885 | L53: 3591.286735
B55: plus: Cash - beginning of year | C55: 1682.531927 | D55: 9784.96905 | E55: 8454.859156 | F55: 8668.193341 | G55: 8833.754123 | H55: 10210.12332 | I55: 12796.70366 | J55: 14971.20114 | K55: 17469.61971 | L55: 20021.95459
B57: Cash - end of the year | C57: =+C55+C53 -> 9784.96905 | D57: 8454.859156 | E57: 8668.193341 | F57: 8833.754123 | G57: 10210.12332 | H57: 12796.70366 | I57: 14971.20114 | J57: =+J55+J53 -> 17469.61971 | K57: =+K55+K53 -> 20021.95459 | L57: =+L55+L53 -> 23613.24133
B58: plus: Investments - end of the year | C58: 27304 | D58: 27304 | E58: 27304 | F58: 27304 | G58: 27304 | H58: 27304 | I58: 27304 | J58: 27304 | K58: 27304 | L58: 27304
B59: Total Cash & Investments - end of the year | C59: =+C57+C58 -> 37088.96905 | D59: 35758.85916 | E59: 35972.19334 | F59: 36137.75412 | G59: 37514.12332 | H59: 40100.70366 | I59: 42275.20114 | J59: 44773.61971 | K59: 47325.95459 | L59: 50917.24133
B61: Representing:
B62: - External Restrictions
B63: - Internal Restricitons
B64: - Unrestricted
B67: Less restricted Cash (NAL) | C67: 0 | D67: 0 | E67: 0 | F67: 0 | G67: 0 | H67: 0 | I67: 0 | J67: 0 | K67: 0 | L67: 0
B68: Cash, Cash Equivalents & Investments - end of the year | C68: =C59+C67 -> 37088.96905 | D68: =D59+D67 -> 35758.85916 | E68: 35972.19334 | F68: 36137.75412 | G68: 37514.12332 | H68: 40100.70366 | I68: 42275.20114 | J68: 44773.61971 | K68: 47325.95459 | L68: 50917.24133
C70: 37088.87116 | D70: 35758.45906 | E70: 35971.99911 | F70: 36137.94648 | G70: 37514.25724 | H70: 40100.51184 | I70: 42275.35245 | J70: 44773.47598 | K70: 47326.32672 | L70: 50916.94017

Sheet Standard - Ratios
B7: Ratios - Standard Scenario - Unconsolidated
C9: ='Standard - P&L'!C10 -> 2020 | D9: ='Standard - P&L'!D10 -> 2021 | E9: ='Standard - P&L'!E10 -> 2022 | F9: ='Standard - P&L'!F10 -> 2023 | G9: ='Standard - P&L'!G10 -> 2024 | H9: ='Standard - P&L'!H10 -> 2025 | I9: ='Standard - P&L'!I10 -> 2026 | J9: ='Standard - P&L'!J10 -> 2027 | K9: ='Standard - P&L'!K10 -> 2028 | L9: ='Standard - P&L'!L10 -> 2029
B11: Operating Performance | C11: =(C13-C14-C15)/(C13-C14) -> 0.006312432014 | D11: -0.003439693551 | E11: 0.000908723438 | F11: -9.105605521e-05 | G11: 0.008304161963 | H11: 0.0008170773175 | I11: 0.007061219967 | J11: 0.004740910039 | K11: 0.01191541835 | L11: =(L13-L14-L15)/(L13-L14) -> 0.004837118
B12: Operating Perfomance Min Target | C12: 0 | D12: 0 | E12: 0 | F12: 0 | G12: 0 | H12: 0 | I12: 0 | J12: 0 | K12: 0 | L12: 0
B13: Operating Revenue* | C13: ='Standard - P&L'!C20+'Standard - P&L'!C41-'Standard - P&L'!C19 -> 113160.7231 | D13: ='Standard - P&L'!D20+'Standard - P&L'!D41-'Standard - P&L'!D19 -> 115906.5196 | E13: ='Standard - P&L'!E20+'Standard - P&L'!E41-'Standard - P&L'!E19 -> 119205.7357 | F13: ='Standard - P&L'!F20+'Standard - P&L'!F41-'Standard - P&L'!F19 -> 122636.088 | G13: ='Standard - P&L'!G20+'Standard - P&L'!G41-'Standard - P&L'!G19 -> 126143.2379 | H13: ='Standard - P&L'!H20+'Standard - P&L'!H41-'Standard - P&L'!H19 -> 129425.2391 | I13: ='Standard - P&L'!I20+'Standard - P&L'!I41-'Standard - P&L'!I19 -> 132817.8257 | J13: ='Standard - P&L'!J20+'Standard - P&L'!J41-'Standard - P&L'!J19 -> 136282.3227 | K13: ='Standard - P&L'!K20+'Standard - P&L'!K41-'Standard - P&L'!K19 -> 139846.2828 | L13: ='Standard - P&L'!L20+'Standard - P&L'!L41-'Standard - P&L'!L19 -> 143517.6353
B14: Capital Grants | C14: ='Standard - P&L'!C18 -> 5865.51 | D14: ='Standard - P&L'!D18 -> 5982.8202 | E14: ='Standard - P&L'!E18 -> 6102.476604 | F14: ='Standard - P&L'!F18 -> 6224.526136 | G14: ='Standard - P&L'!G18 -> 6349.016659 | H14: ='Standard - P&L'!H18 -> 6475.996992 | I14: ='Standard - P&L'!I18 -> 6605.516932 | J14: ='Standard - P&L'!J18 -> 6737.62727 | K14: ='Standard - P&L'!K18 -> 6872.379816 | L14: ='Standard - P&L'!L18 -> 7009.827412
B15: Operating Expenses | C15: ='Standard - P&L'!C29 -> 106617.9193 | D15: ='Standard - P&L'!D29 -> 110301.8033 | E15: ='Standard - P&L'!E29 -> 113000.4796 | F15: ='Standard - P&L'!F29 -> 116422.1618 | G15: ='Standard - P&L'!G29 -> 118799.4306 | H15: ='Standard - P&L'!H29 -> 122848.7831 | I15: ='Standard - P&L'!I29 -> 125321.0959 | J15: ='Standard - P&L'!J29 -> 128930.5357 | K15: ='Standard - P&L'!K29 -> 131389.4633 | L15: ='Standard - P&L'!L29 -> 135847.5035
B17: Own Source Revenue | C17: =+C19/C20 -> 0.8391233693 | D17: 0.8392608866 | E17: 0.840053293 | F17: 0.840889277 | G17: 0.8416925692 | H17: 0.8420949247 | I17: 0.8425253194 | J17: 0.8429341179 | K17: 0.8433512337 | L17: =+L19/L20 -> 0.8437818849
B18: Own Source Revenue Min Target | C18: 0.6 | D18: 0.6 | E18: 0.6 | F18: 0.6 | G18: 0.6 | H18: 0.6 | I18: 0.6 | J18: 0.6 | K18: 0.6 | L18: 0.6
B19: Operating Revenue** | C19: ='Standard - P&L'!C13+'Standard - P&L'!C14+'Standard - P&L'!C16+'Standard - P&L'!C15+'Standard - P&L'!C41 -> 94955.80721 | D19: ='Standard - P&L'!D13+'Standard - P&L'!D14+'Standard - P&L'!D16+'Standard - P&L'!D15+'Standard - P&L'!D41 -> 97275.80844 | E19: ='Standard - P&L'!E13+'Standard - P&L'!E14+'Standard - P&L'!E16+'Standard - P&L'!E15+'Standard - P&L'!E41 -> 100139.1709 | F19: ='Standard - P&L'!F13+'Standard - P&L'!F14+'Standard - P&L'!F16+'Standard - P&L'!F15+'Standard - P&L'!F41 -> 103123.3714 | G19: ='Standard - P&L'!G13+'Standard - P&L'!G14+'Standard - P&L'!G16+'Standard - P&L'!G15+'Standard - P&L'!G41 -> 106173.826 | H19: ='Standard - P&L'!H13+'Standard - P&L'!H14+'Standard - P&L'!H16+'Standard - P&L'!H15+'Standard - P&L'!H41 -> 108988.337 | I19: ='Standard - P&L'!I13+'Standard - P&L'!I14+'Standard - P&L'!I16+'Standard - P&L'!I15+'Standard - P&L'!I41 -> 111902.381 | J19: ='Standard - P&L'!J13+'Standard - P&L'!J14+'Standard - P&L'!J16+'Standard - P&L'!J15+'Standard - P&L'!J41 -> 114877.0195 | K19: ='Standard - P&L'!K13+'Standard - P&L'!K14+'Standard - P&L'!K16+'Standard - P&L'!K15+'Standard - P&L'!K41 -> 117939.5351 | L19: ='Standard - P&L'!L13+'Standard - P&L'!L14+'Standard - P&L'!L16+'Standard - P&L'!L15+'Standard - P&L'!L41 -> 121097.5808
B20: Total operating Revenue* | C20: =C13 -> 113160.7231 | D20: 115906.5196 | E20: 119205.7357 | F20: 122636.088 | G20: 126143.2379 | H20: 129425.2391 | I20: 132817.8257 | J20: 136282.3227 | K20: 139846.2828 | L20: =L13 -> 143517.6353
B22: Capital Expenditure Ratio | C22: =C24/C25 -> 1.13666811 | D22: 1.14674217 | E22: 1.138308314 | F22: 1.120790262 | G22: 1.141337349 | H22: 1.162147741 | I22: 1.183317246 | J22: 1.204681961 | K22: 1.225150502 | L22: =L24/L25 -> 1.242739439
B23: Capital Expenditure Ratio Min Target | C23: 1 | D23: 1 | E23: 1 | F23: 1 | G23: 1 | H23: 1 | I23: 1 | J23: 1 | K23: 1 | L23: 1
B24: Capital Expenditure | C24: =-'Standard - Cashflow'!C38-'Standard - Cashflow'!C39 -> 16045 | D24: =-'Standard - Cashflow'!D38-'Standard - Cashflow'!D39 -> 16446.125 | E24: =-'Standard - Cashflow'!E38-'Standard - Cashflow'!E39 -> 16857.27812 | F24: =-'Standard - Cashflow'!F38-'Standard - Cashflow'!F39 -> 17278.71008 | G24: =-'Standard - Cashflow'!G38-'Standard - Cashflow'!G39 -> 17710.67783 | H24: =-'Standard - Cashflow'!H38-'Standard - Cashflow'!H39 -> 18153.44478 | I24: =-'Standard - Cashflow'!I38-'Standard - Cashflow'!I39 -> 18607.2809 | J24: =-'Standard - Cashflow'!J38-'Standard - Cashflow'!J39 -> 19072.46292 | K24: =-'Standard - Cashflow'!K38-'Standard - Cashflow'!K39 -> 19549.27449 | L24: =-'Standard - Cashflow'!L38-'Standard - Cashflow'!L39 -> 20038.00635
B25: Depreciation | C25: ='Standard - P&L'!C26+'Standard - P&L'!C27 -> 14115.81786 | D25: ='Standard - P&L'!D26+'Standard - P&L'!D27 -> 14341.60653 | E25: ='Standard - P&L'!E26+'Standard - P&L'!E27 -> 14809.06176 | F25: ='Standard - P&L'!F26+'Standard - P&L'!F27 -> 15416.54194 | G25: ='Standard - P&L'!G26+'Standard - P&L'!G27 -> 15517.47855 | H25: ='Standard - P&L'!H26+'Standard - P&L'!H27 -> 15620.59981 | I25: ='Standard - P&L'!I26+'Standard - P&L'!I27 -> 15724.6765 | J25: ='Standard - P&L'!J26+'Standard - P&L'!J27 -> 15831.94863 | K25: ='Standard - P&L'!K26+'Standard - P&L'!K27 -> 15956.63101 | L25: ='Standard - P&L'!L26+'Standard - P&L'!L27 -> 16124.06087
B27: Debt Service Coverage ratio | C27: =C28/(C29+C30) -> 3.562726951 | D27: =D28/(D29+D30) -> 3.473111576 | E27: 4.946409772 | F27: 5.108854441 | G27: 6.841693257 | H27: 16.67458352 | I27: 17.4721127 | J27: 17.0812845 | K27: 16.98060658 | L27: =L28/(L29+L30) -> 23.06700481
B28: EBITDA | C28: ='Standard - P&L'!C37+'Standard - P&L'!C26+'Standard - P&L'!C27+'Standard - P&L'!C41-'Standard - P&L'!C19-'Standard - P&L'!C15 -> 13661.9866 | D28: ='Standard - P&L'!D37+'Standard - P&L'!D26+'Standard - P&L'!D27+'Standard - P&L'!D41-'Standard - P&L'!D19-'Standard - P&L'!D15 -> 13036.27847 | E28: ='Standard - P&L'!E37+'Standard - P&L'!E26+'Standard - P&L'!E27+'Standard - P&L'!E41-'Standard - P&L'!E19-'Standard - P&L'!E15 -> 14017.86987 | F28: ='Standard - P&L'!F37+'Standard - P&L'!F26+'Standard - P&L'!F27+'Standard - P&L'!F41-'Standard - P&L'!F19-'Standard - P&L'!F15 -> 14506.63713 | G28: ='Standard - P&L'!G37+'Standard - P&L'!G26+'Standard - P&L'!G27+'Standard - P&L'!G41-'Standard - P&L'!G19-'Standard - P&L'!G15 -> 15608.82531 | H28: ='Standard - P&L'!H37+'Standard - P&L'!H26+'Standard - P&L'!H27+'Standard - P&L'!H41-'Standard - P&L'!H19-'Standard - P&L'!H15 -> 14783.20576 | I28: ='Standard - P&L'!I37+'Standard - P&L'!I26+'Standard - P&L'!I27+'Standard - P&L'!I41-'Standard - P&L'!I19-'Standard - P&L'!I15 -> 15613.37178 | J28: ='Standard - P&L'!J37+'Standard - P&L'!J26+'Standard - P&L'!J27+'Standard - P&L'!J41-'Standard - P&L'!J19-'Standard - P&L'!J15 -> 15389.22835 | K28: ='Standard - P&L'!K37+'Standard - P&L'!K26+'Standard - P&L'!K27+'Standard - P&L'!K41-'Standard - P&L'!K19-'Standard - P&L'!K15 -> 16421.7302 | L28: ='Standard - P&L'!L37+'Standard - P&L'!L26+'Standard - P&L'!L27+'Standard - P&L'!L41-'Standard - P&L'!L19-'Standard - P&L'!L15 -> 15601.21638
B29: Principal repayments | C29: =-'Standard - Cashflow'!C50 -> 3301.813523 | D29: =-'Standard - Cashflow'!D50 -> 3237.496221 | E29: =-'Standard - Cashflow'!E50 -> 2410.536558 | F29: =-'Standard - Cashflow'!F50 -> 2497.369896 | G29: =-'Standard - Cashflow'!G50 -> 2013.929462 | H29: =-'Standard - Cashflow'!H50 -> 652.4588597 | I29: =-'Standard - Cashflow'!I50 -> 677.1915801 | J29: =-'Standard - Cashflow'!J50 -> 702.8687402 | K29: =-'Standard - Cashflow'!K50 -> 787.5808834 | L29: =-'Standard - Cashflow'!L50 -> 521.0518083
B30: Interest expense | C30: ='Standard - P&L'!C24 -> 532.8857916 | D30: ='Standard - P&L'!D24 -> 515.9905828 | E30: ='Standard - P&L'!E24 -> 423.411803 | F30: ='Standard - P&L'!F24 -> 342.1389015 | G30: ='Standard - P&L'!G24 -> 267.4977704 | H30: ='Standard - P&L'!H24 -> 234.1123546 | I30: ='Standard - P&L'!I24 -> 216.4251248 | J30: ='Standard - P&L'!J24 -> 198.0721902 | K30: ='Standard - P&L'!K24 -> 179.5064889 | L30: ='Standard - P&L'!L24 -> 155.2915882
B31: Debt Service Coverage ratio Min Target | C31: 2 | D31: 2 | E31: 2 | F31: 2 | G31: 2 | H31: 2 | I31: 2 | J31: 2 | K31: 2 | L31: 2
B33: Cash Expense Cover Ratio | C33: =C35/(C36/12) -> 4.703941443 | D33: 4.352854204 | E33: 4.322899655 | F33: 4.215982152 | G33: 4.300795894 | H33: 4.527736003 | I33: 4.629667396 | J33: 4.788787089 | K33: 4.930962141 | L33: =L35/(L36/12) -> 5.210825888
B34: Cash Expense Cover Ratio Min Target | C34: 3 | D34: 3 | E34: 3 | F34: 3 | G34: 3 | H34: 3 | I34: 3 | J34: 3 | K34: 3 | L34: 3
B35: Cash & Cash Equivalents | C35: ='Standard - Cashflow'!C59 -> 37088.96905 | D35: ='Standard - Cashflow'!D59 -> 35758.85916 | E35: ='Standard - Cashflow'!E59 -> 35972.19334 | F35: ='Standard - Cashflow'!F59 -> 36137.75412 | G35: ='Standard - Cashflow'!G59 -> 37514.12332 | H35: ='Standard - Cashflow'!H59 -> 40100.70366 | I35: ='Standard - Cashflow'!I59 -> 42275.20114 | J35: ='Standard - Cashflow'!J59 -> 44773.61971 | K35: ='Standard - Cashflow'!K59 -> 47325.95459 | L35: ='Standard - Cashflow'!L59 -> 50917.24133
B36: Total Expenses - Depreciation and Interest Cost | C36: =-SUM('Standard - Cashflow'!C21:C25)-'Standard - Cashflow'!C50 -> 94615.89477 | D36: =-SUM('Standard - Cashflow'!D21:D25)-'Standard - Cashflow'!D50 -> 98580.44624 | E36: =-SUM('Standard - Cashflow'!E21:E25)-'Standard - Cashflow'!E50 -> 99855.73448 | F36: =-SUM('Standard - Cashflow'!F21:F25)-'Standard - Cashflow'!F50 -> 102859.3181 | G36: =-SUM('Standard - Cashflow'!G21:G25)-'Standard - Cashflow'!G50 -> 104671.2029 | H36: =-SUM('Standard - Cashflow'!H21:H25)-'Standard - Cashflow'!H50 -> 106280.1461 | I36: =-SUM('Standard - Cashflow'!I21:I25)-'Standard - Cashflow'!I50 -> 109576.4275 | J36: =-SUM('Standard - Cashflow'!J21:J25)-'Standard - Cashflow'!J50 -> 112196.1421 | K36: =-SUM('Standard - Cashflow'!K21:K25)-'Standard - Cashflow'!K50 -> 115172.5442 | L36: =-SUM('Standard - Cashflow'!L21:L25)-'Standard - Cashflow'!L50 -> 117257.2082
B38: Rates and Annual Charges Outstanding | C38: =C39/C40 -> 0.02899972029 | D38: =D39/D40 -> 0.02882733141 | E38: 0.02889955296 | F38: 0.02890886822 | G38: 0.0288785842 | H38: 0.02889566846 | I38: 0.02889437362 | J38: 0.02888954209 | K38: 0.02889319473 | L38: 0.02889237015
B39: Rates, annual and extra charges outstanding | C39: 1713.50076 | D39: 1750.329925 | E39: 1803.026236 | F39: 1853.142334 | G39: 1901.921148 | H39: 1955.065171 | I39: 2008.294512 | J39: 2062.599433 | K39: 2118.87405 | L39: 2176.226122
B40: Rates, annual and extra charges collectible | C40: ='Standard - P&L'!C13 -> 59086.803 | D40: ='Standard - P&L'!D13 -> 60717.72307 | E40: ='Standard - P&L'!E13 -> 62389.41615 | F40: ='Standard - P&L'!F13 -> 64102.90156 | G40: ='Standard - P&L'!G13 -> 65859.22409 | H40: ='Standard - P&L'!H13 -> 67659.4547 | I40: ='Standard - P&L'!I13 -> 69504.69106 | J40: ='Standard - P&L'!J13 -> 71396.05834 | K40: ='Standard - P&L'!K13 -> 73334.7098 | L40: ='Standard - P&L'!L13 -> 75321.82754
B43: *Operating revenue excludes 'Investment property fair value increases' and 'Gain on sale of assets'
B44: **Operating revenue excludes all grants and contributions, 'Investment property fair value increases' and 'Gain on sale of assets'

Sheet Standard - SS7 Ratios
B7: Special Schedule 7 Ratios - Standard Scenario - Unconsolidated
C9: 2020 | D9: =C9+1 -> 2021 | E9: =D9+1 -> 2022 | F9: 2023 | G9: 2024 | H9: 2025 | I9: 2026 | J9: 2027 | K9: 2028 | L9: 2029
B11: Building and Infrastructure Renewals Ratio | C11: =C12/C13 -> 1.359822717 | D11: 1.235859676 | E11: 1.231979662 | F11: 1.216052944 | G11: 1.237027092 | H11: 1.258049248 | I11: 1.27911221 | J11: 1.300208849 | K11: 1.321332117 | L11: 1.342475055
B12: Asset Renewals (Building and Infrastructure) | C12: =C16 -> 13193 | D12: =D16 -> 13555.8075 | E12: 13928.59221 | F12: 14311.62849 | G12: 14705.19828 | H12: 15109.59123 | I12: 15525.10499 | J12: 15952.04537 | K12: 16390.72662 | L12: 16841.4716
B13: Depreciation, Amortisation & Impairment | C13: =C25 -> 9702 | D13: =D25 -> 10968.72708 | E13: 11305.86213 | F13: 11768.91892 | G13: 11887.5313 | H13: 12010.33366 | I13: 12137.40661 | J13: 12268.8331 | K13: 12404.69857 | L13: 12545.0909
B15: Numerator:
B16: Asset Renewals (Building & Infrastructure) | C16: =SUM(C17:C22) -> 13193 | D16: 13555.8075 | E16: 13928.59221 | F16: 14311.62849 | G16: 14705.19828 | H16: 15109.59123 | I16: 15525.10499 | J16: 15952.04537 | K16: 16390.72662 | L16: 16841.4716
B17: - Buildings & other structures | C17: 1118 | D17: =C17*1.0275 -> 1148.745 | E17: =D17*1.0275 -> 1180.335488 | F17: 1212.794713 | G17: 1246.146568 | H17: 1280.415599 | I17: 1315.627028 | J17: 1351.806771 | K17: 1388.981457 | L17: 1427.178447
B18: - Roads & bridges | C18: 7803 | D18: =C18*1.0275 -> 8017.5825 | E18: 8238.066019 | F18: 8464.612834 | G18: 8697.389687 | H18: 8936.567904 | I18: 9182.323521 | J18: 9434.837418 | K18: 9694.295447 | L18: 9960.888572
B19: - Footpaths | C19: 488 | D19: 501.42 | E19: 515.20905 | F19: 529.3772989 | G19: 543.9351746 | H19: 558.8933919 | I19: 574.2629602 | J19: 590.0551916 | K19: 606.2817093 | L19: 622.9544564
B20: - Stormwater Drainage | C20: 2643 | D20: 2715.6825 | E20: 2790.363769 | F20: 2867.098772 | G20: 2945.943989 | H20: 3026.957448 | I20: 3110.198778 | J20: 3195.729245 | K20: 3283.611799 | L20: 3373.911123
B21: - Other Infrastructure | C21: 560 | D21: 575.4 | E21: 591.2235 | F21: 607.4821463 | G21: 624.1879053 | H21: 641.3530727 | I21: 658.9902822 | J21: 677.1125149 | K21: 695.7331091 | L21: 714.8657696
B22: - Other Open Space/Recreational Assets | C22: 581 | D22: 596.9775 | E22: 613.3943813 | F22: 630.2627267 | G22: 647.5949517 | H22: 665.4038129 | I22: 683.7024177 | J22: 702.5042342 | K22: 721.8231007 | L22: 741.6732359
B24: Denominator:
B25: Depreciation, Amortisation & Impairment | C25: =SUM(C26:C33) -> 9702 | D25: 10968.72708 | E25: 11305.86213 | F25: 11768.91892 | G25: 11887.5313 | H25: 12010.33366 | I25: 12137.40661 | J25: 12268.8331 | K25: 12404.69857 | L25: 12545.0909
B26: - Buildings | C26: 5074 | D26: =$M26*'[4]Standard - P&L'!D$26 -> 5736.496528 | E26: =$M26*'[4]Standard - P&L'!E$26 -> 5912.813614 | F26: =$M26*'[4]Standard - P&L'!F$26 -> 6154.986079 | G26: =$M26*'[4]Standard - P&L'!G$26 -> 6217.018756 | H26: =$M26*'[4]Standard - P&L'!H$26 -> 6281.242738 | I26: =$M26*'[4]Standard - P&L'!I$26 -> 6347.700176 | J26: =$M26*'[4]Standard - P&L'!J$26 -> 6416.434465 | K26: =$M26*'[4]Standard - P&L'!K$26 -> 6487.490274 | L26: =$M26*'[4]Standard - P&L'!L$26 -> 6560.913574 | M26: 0.3582001741
B27: - Other Structures | C27: 234 | D27: =$M27*'[4]Standard - P&L'!D$26 -> 264.9469193 | E27: =$M27*'[4]Standard - P&L'!E$26 -> 273.0903338 | F27: =$M27*'[4]Standard - P&L'!F$26 -> 284.2753573 | G27: =$M27*'[4]Standard - P&L'!G$26 -> 287.1404103 | H27: =$M27*'[4]Standard - P&L'!H$26 -> 290.1066714 | I27: =$M27*'[4]Standard - P&L'!I$26 -> 293.1760873 | J27: =$M27*'[4]Standard - P&L'!J$26 -> 296.3506622 | K27: =$M27*'[4]Standard - P&L'!K$26 -> 299.6324593 | L27: =$M27*'[4]Standard - P&L'!L$26 -> 303.0236018 | M27: 0.01654390135
B28: - Roads | C28: 2690 | D28: =$M28*'[4]Standard - P&L'!D$26 -> 3041.047926 | E28: =$M28*'[4]Standard - P&L'!E$26 -> 3134.517643 | F28: =$M28*'[4]Standard - P&L'!F$26 -> 3262.898802 | G28: =$M28*'[4]Standard - P&L'!G$26 -> 3295.783742 | H28: =$M28*'[4]Standard - P&L'!H$26 -> 3329.830343 | I28: =$M28*'[4]Standard - P&L'!I$26 -> 3365.06095 | J28: =$M28*'[4]Standard - P&L'!J$26 -> 3401.498568 | K28: =$M28*'[4]Standard - P&L'!K$26 -> 3439.166876 | L28: =$M28*'[4]Standard - P&L'!L$26 -> 3478.090245 | M28: 0.1898900995
B29: - Bridges | C29: 12 | D29: =$M29*'[4]Standard - P&L'!D$26 -> 13.5676943 | E29: =$M29*'[4]Standard - P&L'!E$26 -> 13.98471126 | F29: =$M29*'[4]Standard - P&L'!F$26 -> 14.55748629 | G29: =$M29*'[4]Standard - P&L'!G$26 -> 14.70420309 | H29: =$M29*'[4]Standard - P&L'!H$26 -> 14.85610266 | I29: =$M29*'[4]Standard - P&L'!I$26 -> 15.0132847 | J29: =$M29*'[4]Standard - P&L'!J$26 -> 15.17585183 | K29: =$M29*'[4]Standard - P&L'!K$26 -> 15.34390972 | L29: =$M29*'[4]Standard - P&L'!L$26 -> 15.51756709 | M29: 0.0008471983621
B30: - Footpaths | C30: 119 | D30: =$M30*'[4]Standard - P&L'!D$26 -> 134.1694214 | E30: =$M30*'[4]Standard - P&L'!E$26 -> 138.2932558 | F30: =$M30*'[4]Standard - P&L'!F$26 -> 143.9573644 | G30: =$M30*'[4]Standard - P&L'!G$26 -> 145.4082305 | H30: =$M30*'[4]Standard - P&L'!H$26 -> 146.9103485 | I30: =$M30*'[4]Standard - P&L'!I$26 -> 148.4647042 | J30: =$M30*'[4]Standard - P&L'!J$26 -> 150.0723126 | K30: =$M30*'[4]Standard - P&L'!K$26 -> 151.7342184 | L30: =$M30*'[4]Standard - P&L'!L$26 -> 153.4514968 | M30: 0.008377850469
B31: - Stormwater Drainage | C31: 188 | D31: =$M31*'[4]Standard - P&L'!D$26 -> 212.5605441 | E31: =$M31*'[4]Standard - P&L'!E$26 -> 219.0938098 | F31: =$M31*'[4]Standard - P&L'!F$26 -> 228.0672852 | G31: =$M31*'[4]Standard - P&L'!G$26 -> 230.3658484 | H31: =$M31*'[4]Standard - P&L'!H$26 -> 232.7456083 | I31: =$M31*'[4]Standard - P&L'!I$26 -> 235.2081269 | J31: =$M31*'[4]Standard - P&L'!J$26 -> 237.7550121 | K31: =$M31*'[4]Standard - P&L'!K$26 -> 240.387919 | L31: =$M31*'[4]Standard - P&L'!L$26 -> 243.1085511 | M31: 0.01327277434
B32: - Other Open Space/Recreational Assets | C32: 1115 | D32: =$M32*'[4]Standard - P&L'!D$26 -> 1261.041809 | E32: =$M32*'[4]Standard - P&L'!E$26 -> 1299.801219 | F32: =$M32*'[4]Standard - P&L'!F$26 -> 1353.037476 | G32: =$M32*'[4]Standard - P&L'!G$26 -> 1366.673987 | H32: =$M32*'[4]Standard - P&L'!H$26 -> 1380.792208 | I32: =$M32*'[4]Standard - P&L'!I$26 -> 1395.401405 | J32: =$M32*'[4]Standard - P&L'!J$26 -> 1410.511118 | K32: =$M32*'[4]Standard - P&L'!K$26 -> 1426.131165 | L32: =$M32*'[4]Standard - P&L'!L$26 -> 1442.271652 | M32: 0.0787423811
B33: - Other Infrastructure | C33: 270 | D33: =$M33*'[4]Standard - P&L'!D$26 -> 304.8962414 | E33: =$M33*'[4]Standard - P&L'!E$26 -> 314.2675392 | F33: =$M33*'[4]Standard - P&L'!F$26 -> 327.1390669 | G33: =$M33*'[4]Standard - P&L'!G$26 -> 330.4361194 | H33: =$M33*'[4]Standard - P&L'!H$26 -> 333.8496403 | I33: =$M33*'[4]Standard - P&L'!I$26 -> 337.38187 | J33: =$M33*'[4]Standard - P&L'!J$26 -> 341.0351148 | K33: =$M33*'[4]Standard - P&L'!K$26 -> 344.811749 | L33: =$M33*'[4]Standard - P&L'!L$26 -> 348.714216 | M33: 0.01903842986
B35: Infrastructure Backlog Ratio | C35: =C36/C37 -> 0.01892672074 | D35: 0.01914535976 | E35: 0.01957856703 | F35: 0.01959932509 | G35: 0.01837881819 | H35: 0.01827863843 | I35: 0.01867589719 | J35: 0.01907488236 | K35: 0.01947531778 | L35: 0.0198769241
B36: Estimated Cost to bring Assets to a Satisfactory Condition | C36: =C40 -> 14422.33333 | D36: =D40 -> 14682.9475 | E36: 15086.72856 | F36: 15171.61359 | G36: 14296.83297 | H36: 14293.99587 | I36: 14687.08076 | J36: 15090.97548 | K36: 15505.9773 | L36: 15932.39168
B37: Total (written down) value of Infrastructure, Building, Other Structure & Depreciable Land Improvement Assets | C37: =C49 -> 762009.0946 | D37: =D49 -> 766919.3834 | E37: 770573.6857 | F37: 774088.5732 | G37: 777897.2955 | H37: 782005.5047 | I37: 786419.0195 | J37: 791143.8298 | K37: 796186.0997 | L37: 801552.172
B39: Numerator:
B40: Estimated Cost to bring Assets to a Satisfactory Condition | C40: =SUM(C41:C46) -> 14422.33333 | D40: =SUM(D41:D46) -> 14682.9475 | E40: 15086.72856 | F40: 15171.61359 | G40: 14296.83297 | H40: 14293.99587 | I40: 14687.08076 | J40: 15090.97548 | K40: 15505.9773 | L40: 15932.39168
B41: - Roads | C41: 11320.66667 | D41: =C41*1.0275 -> 11631.985 | E41: =D41*1.0275 -> 11951.86459 | F41: =E41*1.0275-243-87 -> 11950.54086 | G41: =F41*1.0275-950-342 -> 10987.18074 | H41: =G41*1.0275-396 -> 10893.32821 | I41: 11192.89473 | J41: 11500.69934 | K41: 11816.96857 | L41: 12141.93521
B42: - Other Structures | C42: 2.666666667 | D42: =C42*1.0275 -> 2.74 | E42: 2.81535 | F42: 2.892772125 | G42: 2.972323358 | H42: 3.054062251 | I42: 3.138048963 | J42: 3.224345309 | K42: 3.313014805 | L42: 3.404122712
B43: - Stormwater Drainage | C43: 1006 | D43: 1033.665 | E43: 1062.090788 | F43: 1091.298284 | G43: 1121.308987 | H43: 1152.144984 | I43: 1183.828971 | J43: 1216.384268 | K43: 1249.834835 | L43: 1284.205293
B44: - Other Infrastructure | C44: 839.3333333 | D44: 862.415 | E44: 886.1314125 | F44: 910.5000263 | G44: 935.5387771 | H44: 961.2660934 | I44: 987.700911 | J44: 1014.862686 | K44: 1042.77141 | L44: 1071.447624
B45: - Other Open Space/Recreational Assets | C45: =293-51 -> 242 | D45: =C45*1.0275-51 -> 197.655 | E45: 203.0905125 | F45: 208.6755016 | G45: 214.4140779 | H45: 220.310465 | I45: 226.3690028 | J45: 232.5941504 | K45: 238.9904895 | L45: 245.562728
B46: - Buildings | C46: =1096.66666666667-85 -> 1011.666667 | D46: =C46*1.0275-85 -> 954.4875 | E46: 980.7359063 | F46: 1007.706144 | G46: 1035.418063 | H46: 1063.892059 | I46: 1093.149091 | J46: 1123.210691 | K46: 1154.098985 | L46: 1185.836707
B48: Denominator:
B49: Net carrying amount of infrastructure assets | C49: =SUM(C50:C57) -> 762009.0946 | D49: =SUM(D50:D57) -> 766919.3834 | E49: 770573.6857 | F49: 774088.5732 | G49: 777897.2955 | H49: 782005.5047 | I49: 786419.0195 | J49: 791143.8298 | K49: 796186.0997 | L49: 801552.172
B50: - Buildings | C50: =$M50*'[4]Standard - balance sheet'!C$24 -> 90274.13296 | D50: =$M50*'[4]Standard - balance sheet'!D$24 -> 90855.84789 | E50: =$M50*'[4]Standard - balance sheet'!E$24 -> 91288.76788 | F50: =$M50*'[4]Standard - balance sheet'!F$24 -> 91705.1716 | G50: =$M50*'[4]Standard - balance sheet'!G$24 -> 92156.38552 | H50: =$M50*'[4]Standard - balance sheet'!H$24 -> 92643.07921 | I50: =$M50*'[4]Standard - balance sheet'!I$24 -> 93165.94203 | J50: =$M50*'[4]Standard - balance sheet'!J$24 -> 93725.68358 | K50: =$M50*'[4]Standard - balance sheet'!K$24 -> 94323.03412 | L50: =$M50*'[4]Standard - balance sheet'!L$24 -> 94958.74506 | M50: 0.09957890711
B51: - Other Structures | C51: =$M51*'[4]Standard - balance sheet'!C$24 -> 3436.805516 | D51: =$M51*'[4]Standard - balance sheet'!D$24 -> 3458.95185 | E51: =$M51*'[4]Standard - balance sheet'!E$24 -> 3475.433446 | F51: =$M51*'[4]Standard - balance sheet'!F$24 -> 3491.286255 | G51: =$M51*'[4]Standard - balance sheet'!G$24 -> 3508.464315 | H51: =$M51*'[4]Standard - balance sheet'!H$24 -> 3526.993117 | I51: =$M51*'[4]Standard - balance sheet'!I$24 -> 3546.898906 | J51: =$M51*'[4]Standard - balance sheet'!J$24 -> 3568.208696 | K51: =$M51*'[4]Standard - balance sheet'!K$24 -> 3590.95029 | L51: =$M51*'[4]Standard - balance sheet'!L$24 -> 3615.152293 | M51: 0.003791045408
B52: - Roads | C52: =$M52*'[4]Standard - balance sheet'!C$24 -> 407593.2796 | D52: =$M52*'[4]Standard - balance sheet'!D$24 -> 410219.7584 | E52: =$M52*'[4]Standard - balance sheet'!E$24 -> 412174.4188 | F52: =$M52*'[4]Standard - balance sheet'!F$24 -> 414054.5073 | G52: =$M52*'[4]Standard - balance sheet'!G$24 -> 416091.766 | H52: =$M52*'[4]Standard - balance sheet'!H$24 -> 418289.218 | I52: =$M52*'[4]Standard - balance sheet'!I$24 -> 420649.9759 | J52: =$M52*'[4]Standard - balance sheet'!J$24 -> 423177.2435 | K52: =$M52*'[4]Standard - balance sheet'!K$24 -> 425874.3181 | L52: =$M52*'[4]Standard - balance sheet'!L$24 -> 428744.5922 | M52: 0.4496049089
B53: - Bridges | C53: =$M53*'[4]Standard - balance sheet'!C$24 -> 11417.75933 | D53: =$M53*'[4]Standard - balance sheet'!D$24 -> 11491.3339 | E53: =$M53*'[4]Standard - balance sheet'!E$24 -> 11546.08908 | F53: =$M53*'[4]Standard - balance sheet'!F$24 -> 11598.7553 | G53: =$M53*'[4]Standard - balance sheet'!G$24 -> 11655.82427 | H53: =$M53*'[4]Standard - balance sheet'!H$24 -> 11717.38068 | I53: =$M53*'[4]Standard - balance sheet'!I$24 -> 11783.51172 | J53: =$M53*'[4]Standard - balance sheet'!J$24 -> 11854.30713 | K53: =$M53*'[4]Standard - balance sheet'!K$24 -> 11929.85928 | L53: =$M53*'[4]Standard - balance sheet'!L$24 -> 12010.2632 | M53: 0.01259461551
B54: - Footpaths | C54: =$M54*'[4]Standard - balance sheet'!C$24 -> 28872.45547 | D54: =$M54*'[4]Standard - balance sheet'!D$24 -> 29058.50587 | E54: =$M54*'[4]Standard - balance sheet'!E$24 -> 29196.96705 | F54: =$M54*'[4]Standard - balance sheet'!F$24 -> 29330.14582 | G54: =$M54*'[4]Standard - balance sheet'!G$24 -> 29474.45796 | H54: =$M54*'[4]Standard - balance sheet'!H$24 -> 29630.11763 | I54: =$M54*'[4]Standard - balance sheet'!I$24 -> 29797.34531 | J54: =$M54*'[4]Standard - balance sheet'!J$24 -> 29976.36794 | K54: =$M54*'[4]Standard - balance sheet'!K$24 -> 30167.4191 | L54: =$M54*'[4]Standard - balance sheet'!L$24 -> 30370.73909 | M54: 0.03184840958
B55: - Stormwater Drainage | C55: =$M55*'[4]Standard - balance sheet'!C$24 -> 193092.212 | D55: =$M55*'[4]Standard - balance sheet'!D$24 -> 194336.4735 | E55: =$M55*'[4]Standard - balance sheet'!E$24 -> 195262.4694 | F55: =$M55*'[4]Standard - balance sheet'!F$24 -> 196153.1378 | G55: =$M55*'[4]Standard - balance sheet'!G$24 -> 197118.2636 | H55: =$M55*'[4]Standard - balance sheet'!H$24 -> 198159.2789 | I55: =$M55*'[4]Standard - balance sheet'!I$24 -> 199277.6584 | J55: =$M55*'[4]Standard - balance sheet'!J$24 -> 200474.9198 | K55: =$M55*'[4]Standard - balance sheet'!K$24 -> 201752.6251 | L55: =$M55*'[4]Standard - balance sheet'!L$24 -> 203112.3815 | M55: 0.2129946953
B56: - Other Open Space/Recreational Assets | C56: =$M56*'[4]Standard - balance sheet'!C$24 -> 21523.29005 | D56: =$M56*'[4]Standard - balance sheet'!D$24 -> 21661.98337 | E56: =$M56*'[4]Standard - balance sheet'!E$24 -> 21765.20078 | F56: =$M56*'[4]Standard - balance sheet'!F$24 -> 21864.48036 | G56: =$M56*'[4]Standard - balance sheet'!G$24 -> 21972.05944 | H56: =$M56*'[4]Standard - balance sheet'!H$24 -> 22088.09766 | I56: =$M56*'[4]Standard - balance sheet'!I$24 -> 22212.75937 | J56: =$M56*'[4]Standard - balance sheet'!J$24 -> 22346.21377 | K56: =$M56*'[4]Standard - balance sheet'!K$24 -> 22488.63495 | L56: =$M56*'[4]Standard - balance sheet'!L$24 -> 22640.20208 | M56: 0.02374174783
B57: - Other Infrastructure | C57: =$M57*'[4]Standard - balance sheet'!C$24 -> 5799.159621 | D57: =$M57*'[4]Standard - balance sheet'!D$24 -> 5836.528662 | E57: =$M57*'[4]Standard - balance sheet'!E$24 -> 5864.339199 | F57: =$M57*'[4]Standard - balance sheet'!F$24 -> 5891.08874 | G57: =$M57*'[4]Standard - balance sheet'!G$24 -> 5920.074469 | H57: =$M57*'[4]Standard - balance sheet'!H$24 -> 5951.339398 | I57: =$M57*'[4]Standard - balance sheet'!I$24 -> 5984.927812 | J57: =$M57*'[4]Standard - balance sheet'!J$24 -> 6020.885295 | K57: =$M57*'[4]Standard - balance sheet'!K$24 -> 6059.258759 | L57: =$M57*'[4]Standard - balance sheet'!L$24 -> 6100.096473 | M57: 0.006396893089
B59: Asset Maintenance Ratio | C59: =C60/C61 -> 0.8745445161 | D59: =D60/D61 -> 0.9027838375 | E59: 0.9203256084 | F59: 0.9433700769 | G59: 0.9603174755 | H59: 0.9913342442 | I59: 1.007006274 | J59: 1.033375288 | K59: 1.046842287 | L59: 1.079974819
B60: Actual Asset Maintenance | C60: =C64 -> 10532.13961 | D60: =D64 -> 10942.28498 | E60: 11208.05394 | F60: 11541.10215 | G60: 11806.24049 | H60: 12251.92841 | I60: 12515.86057 | J60: 12920.75967 | K60: 13172.56592 | L60: 13681.06658
B61: Required Asset Maintenance | C61: =C70 -> 12043 | D61: =D70 -> 12120.60355 | E61: 12178.35714 | F61: 12233.90738 | G61: 12294.10147 | H61: 12359.02873 | I61: 12428.78113 | J61: 12503.45332 | K61: 12583.14273 | L61: 12667.9496
B63: Numerator:
B64: Actual Asset Maintenance | C64: =C66*C67 -> 10532.13961 | D64: 10942.28498 | E64: 11208.05394 | F64: 11541.10215 | G64: 11806.24049 | H64: 12251.92841 | I64: 12515.86057 | J64: 12920.75967 | K64: 13172.56592 | L64: 13681.06658
C66: ='Standard - P&L'!C23+'Standard - P&L'!C25 -> 84257.11686 | D66: ='Standard - P&L'!D23+'Standard - P&L'!D25 -> 87538.27987 | E66: ='Standard - P&L'!E23+'Standard - P&L'!E25 -> 89664.43154 | F66: ='Standard - P&L'!F23+'Standard - P&L'!F25 -> 92328.81718 | G66: ='Standard - P&L'!G23+'Standard - P&L'!G25 -> 94449.9239 | H66: ='Standard - P&L'!H23+'Standard - P&L'!H25 -> 98015.42724 | I66: ='Standard - P&L'!I23+'Standard - P&L'!I25 -> 100126.8845 | J66: ='Standard - P&L'!J23+'Standard - P&L'!J25 -> 103366.0774 | K66: ='Standard - P&L'!K23+'Standard - P&L'!K25 -> 105380.5274 | L66: ='Standard - P&L'!L23+'Standard - P&L'!L25 -> 109448.5326 | M66: <<< total salaries and materials (not including NAP)
C67: 0.125 | D67: 0.125 | E67: 0.125 | F67: 0.125 | G67: 0.125 | H67: 0.125 | I67: 0.125 | J67: 0.125 | K67: 0.125 | L67: 0.125 | M67: <<< per centage for asset maintenance
B69: Denominator:
B70: Required Asset Maintenance | C70: =SUM(C71:C76) -> 12043 | D70: =SUM(D71:D76) -> 12120.60355 | E70: 12178.35714 | F70: 12233.90738 | G70: 12294.10147 | H70: 12359.02873 | I70: 12428.78113 | J70: 12503.45332 | K70: 12583.14273 | L70: 12667.9496
B71: - Roads | C71: 5168 | D71: =D52*$M$71 -> 5201.301929 | E71: =E52*$M$71 -> 5226.085668 | F71: 5249.923885 | G71: 5275.754912 | H71: 5303.617079 | I71: 5333.549851 | J71: 5365.593851 | K71: 5399.790885 | L71: 5436.18397 | M71: =C71/C52 -> 0.01267930621
B72: - Other Structures | C72: 202 | D72: =D51*$M$72 -> 203.3016621 | E72: =E51*$M$72 -> 204.2703763 | F72: 205.2021333 | G72: 206.2117825 | H72: 207.3008224 | I72: 208.4707953 | J72: 209.7232891 | K72: 211.0599379 | L72: 212.482423 | M72: =C72/C51 -> 0.05877551088
B73: - Stormwater Drainage | C73: 1220 | D73: =D55*$M$73 -> 1227.861524 | E73: =E55*$M$73 -> 1233.712174 | F73: 1239.339617 | G73: 1245.437498 | H73: 1252.014868 | I73: 1259.081041 | J73: 1266.645607 | K73: 1274.718437 | L73: 1283.309683 | M73: =C73/C55 -> 0.006318224786
B74: - Other Infrastructure | C74: 35 | D74: =D57*$M$74 -> 35.22553551 | E74: =E57*$M$74 -> 35.39338204 | F74: 35.55482507 | G74: 35.7297643 | H74: 35.91845932 | I74: 36.1211774 | J74: 36.33819365 | K74: 36.56979121 | L74: 36.81626141 | M74: =C74/C57 -> 0.006035357239
B75: - Other Open Space/Recreational Assets | C75: 3843 | D75: =D56*$M$75 -> 3867.763799 | E75: =E56*$M$75 -> 3886.193348 | F75: 3903.919793 | G75: 3923.12812 | H75: 3943.846833 | I75: 3966.105278 | J75: 3989.933663 | K75: 4015.363075 | L75: 4042.425502 | M75: =C75/C56 -> 0.1785507695
B76: - Buildings | C76: 1575 | D76: =D50*$M$76 -> 1585.149098 | E76: =E50*$M$76 -> 1592.702192 | F76: 1599.967128 | G76: 1607.839394 | H76: 1616.330669 | I76: 1625.452983 | J76: 1635.218714 | K76: 1645.640605 | L76: 1656.731763 | M76: =C76/C50 -> 0.01744685823

Sheet Standard - Graphs
B7: Graphs - Standard Scenario - Unconsolidated
B72: Special Schedule 7 Graphs - Standard Scenario - Unconsolidated

Sheet Strategic - P&L
B7: Profit & Loss Statement - Strategic Scenario - Unconsolidated
B10: For the period ended 30 June | C10: 2020 | D10: =C10+1 -> 2021 | E10: 2022 | F10: 2023 | G10: 2024 | H10: 2025 | I10: 2026 | J10: 2027 | K10: 2028 | L10: 2029
C11: $'000 | D11: $'000 | E11: $'000 | F11: $'000 | G11: $'000 | H11: $'000 | I11: $'000 | J11: $'000 | K11: $'000 | L11: $'000
B12: Revenue
B13: Rates & Annual Charges | C13: 61105.82902 | D13: 65048.11326 | E13: 69258.52124 | F13: 73756.47356 | G13: 78562.83013 | H13: 83699.99772 | I13: 89192.04552 | J13: 91575.59666 | K13: 94018.73657 | L13: 96522.95499
B14: User Fees and Charges | C14: 26455.71047 | D14: 27268.48824 | E14: 28289.11944 | F14: 29345.44643 | G14: 30421.10159 | H14: 31181.62913 | I14: 31961.16986 | J14: 32760.1991 | K14: 33579.20408 | L14: 34418.68418
B15: Interest & Investment Revenue | C15: 1131.125 | D15: 881.1308479 | E15: 850.8918094 | F15: 857.0018402 | G15: 848.5135316 | H15: 844.4143786 | I15: 877.3747259 | J15: 855.8749552 | K15: 843.8800216 | L15: 800.1125559
B16: Other Revenues | C16: 9068.843738 | D16: 9433.961128 | E16: 9666.442588 | F16: 9904.643477 | G16: 10148.70423 | H16: 10398.76874 | I16: 10654.98439 | J16: 10917.50221 | K16: 11186.47692 | L16: 11462.06702
B17: Operating Grants and Contributions | C17: 12339.40586 | D17: 12647.89101 | E17: 12964.08828 | F17: 13288.19049 | G17: 13620.39525 | H17: 13960.90513 | I17: 14309.92776 | J17: 14667.67595 | K17: 15034.36785 | L17: 15410.22705
B18: Capital Grants and Contributions | C18: 5865.51 | D18: 5982.8202 | E18: 6102.476604 | F18: 6224.526136 | G18: 6349.016659 | H18: 6475.996992 | I18: 6605.516932 | J18: 6737.62727 | K18: 6872.379816 | L18: 7009.827412
B19: Gain on Sale of assets | C19: 250 | D19: 250 | E19: 250 | F19: 250 | G19: 250 | H19: 250 | I19: 250 | J19: 250 | K19: 250 | L19: 250
B20: Total Revenue | C20: =SUM(C13:C19) -> 116216.4241 | D20: =SUM(D13:D19) -> 121512.4047 | E20: 127381.54 | F20: 133626.2819 | G20: 140200.5614 | H20: 146811.7121 | I20: 153851.0192 | J20: 157764.4762 | K20: 161785.0453 | L20: 165873.8732
B22: Operating Expenses
B23: Employee Benefits & On-Costs | C23: 45345.37622 | D23: 46631.21582 | E23: 48993.3042 | F23: 52243.32121 | G23: 55481.67495 | H23: 58137.37068 | I23: 61012.50046 | J23: 64211.59215 | K23: 66915.35483 | L23: 69542.08097
B24: Borrowing Costs | C24: 1082.885792 | D24: 1588.490583 | E24: 1939.464435 | F24: 2173.966387 | G24: 2491.570698 | H24: 2669.180724 | I24: 2489.155603 | J24: 2458.464777 | K24: 2266.022723 | L24: 2067.931469
B25: Materials & Contracts | C25: 40113.11048 | D25: 41615.93824 | E25: 42143.8367 | F25: 43225.93262 | G25: 44328.08093 | H25: 46186.28295 | I25: 46827.19003 | J25: 48047.86978 | K25: 49349.06652 | L25: 51182.79319
B26: Depreciation & Amortisation | C26: 14326.41365 | D26: 14872.89627 | E26: 15949.04387 | F26: 16148.9357 | G26: 16333.02001 | H26: 16973.53653 | I26: 17191.39208 | J26: 17341.93558 | K26: 17544.10324 | L26: 17804.56954
B27: Amortisation - intangibles | C27: 262.741512 | D27: 294.1932096 | E27: 321.4545677 | F27: 345.4161541 | G27: 366.7917358 | H27: 386.1536715 | I27: 403.9612271 | J27: 420.5832288 | K27: 436.3161863 | L27: 451
B28: Other | C28: 7713.098825 | D28: 7905.926296 | E28: 8103.574453 | F28: 8306.163814 | G28: 8563.81791 | H28: 8777.913357 | I28: 8997.361191 | J28: 9222.295221 | K28: 9452.852602 | L28: 9689.173917
B29: Total Operating Expenses | C29: =SUM(C23:C28) -> 108843.6265 | D29: =SUM(D23:D28) -> 112908.6604 | E29: =SUM(E23:E28) -> 117450.6782 | F29: 122443.7359 | G29: 127564.9562 | H29: 133130.4379 | I29: 136921.5606 | J29: 141702.7407 | K29: 145963.7161 | L29: 150737.5491
B31: Operating Surplus / (Deficit) | C31: =C20-C29 -> 7372.797617 | D31: =D20-D29 -> 8603.744258 | E31: 9930.861742 | F31: 11182.54605 | G31: 12635.60516 | H31: 13681.27418 | I31: 16929.45859 | J31: 16061.73542 | K31: 15821.32917 | L31: =L20-L29 -> 15136.32412
B33: Other Comprehensive Income | C33: 0 | D33: 0 | E33: 0 | F33: 0 | G33: 0 | H33: 0 | I33: 0 | J33: 0 | K33: 0 | L33: 0
B35: Total Comprehensive Income | C35: =SUM(C31:C34) -> 7372.797617 | D35: =SUM(D31:D34) -> 8603.744258 | E35: 9930.861742 | F35: 11182.54605 | G35: 12635.60516 | H35: 13681.27418 | I35: 16929.45859 | J35: 16061.73542 | K35: 15821.32917 | L35: =SUM(L31:L34) -> 15136.32412
B37: Net Operating Result before Capital Grants | C37: =+C35-C18 -> 1507.287617 | D37: 2620.924058 | E37: 3828.385138 | F37: 4958.019915 | G37: 6286.588506 | H37: 7205.277189 | I37: 10323.94166 | J37: 9324.108149 | K37: 8948.949351 | L37: 8126.496708
B39: Adjustments for Underlying Result
B40: Gain on Sale of assets | C40: -250 | D40: -250 | E40: -250 | F40: -250 | G40: -250 | H40: -250 | I40: -250 | J40: -250 | K40: -250 | L40: -250
B41: Investment property fair value increases | C41: -786.675 | D41: -996.02325 | E41: -1025.903948 | F41: -1056.681066 | G41: -1088.381498 | H41: -1121.032943 | I41: -1154.663931 | J41: -1189.303849 | K41: -1224.982965 | L41: -1261.732453
B42: NAP Profit | C42: 0 | D42: 0 | E42: 0 | F42: 0 | G42: 0 | H42: 0 | I42: 0 | J42: 0 | K42: 0 | L42: 0
B43: Local election costs | C43: 0 | D43: 500 | E43: 0 | F43: 0 | G43: 0 | H43: 550 | I43: 0 | J43: 0 | K43: 0 | L43: 600
B44: NAP dividend
B45: Underlying result* | C45: =SUM(C37:C44) -> 470.6126168 | D45: 1874.900808 | E45: 2552.48119 | F45: 3651.338849 | G45: 4948.207008 | H45: 6384.244246 | I45: 8919.277732 | J45: 7884.8043 | K45: 7473.966386 | L45: =SUM(L37:L44) -> 7214.764255
B47: Less: SRV loan repayments | C47: -550 | D47: -1128.947368 | E47: -1684.502924 | F47: -2155.091159 | G47: -2780.091159 | H47: -3246.757826 | I47: -3246.757826 | J47: -3477.527057 | K47: -3477.527057 | L47: -3477.527057
B49: Revised underlying result | C49: =C45+C47 -> -79.38738323 | D49: =D45+D47 -> 745.9534399 | E49: 867.9782662 | F49: 1496.24769 | G49: 2168.115849 | H49: 3137.48642 | I49: 5672.519906 | J49: 4407.277243 | K49: 3996.43933 | L49: 3737.237198
B51: Old result before NAL removal | C51: 470.6126168 | D51: 1875.016348 | E51: 2552.057535 | F51: 3651.56066 | G51: 4949.264127 | H51: 6383.531093 | I51: 8919.489798 | J51: 7884.554908 | K51: 7473.485247 | L51: 7214.710493
B53: *The surplus is positive compared to the consolidated model due to the interest earned on the dividend from NAP.
C54: =C51-C45 -> -5.00222086e-12 | D54: =D51-D45 -> 0.1155400384 | E54: -0.4236549114 | F54: 0.221810533 | G54: 1.057118719 | H54: -0.7131526539 | I54: 0.2120659867 | J54: -0.2493916411 | K54: -0.4811395072 | L54: -0.05376147695

Sheet Strategic - Balance Sheet
B7: Balance Sheet - Strategic Scenario - Unconsolidated
B8: ='Strategic - P&L'!#REF! ->  | C8: New Projection | D8: New Projection | E8: New Projection | F8: New Projection | G8: New Projection | H8: New Projection | I8: New Projection | J8: New Projection | K8: New Projection | L8: New Projection
B10: As at 30 June | C10: 2020 | D10: =C10+1 -> 2021 | E10: =D10+1 -> 2022 | F10: =E10+1 -> 2023 | G10: 2024 | H10: 2025 | I10: 2026 | J10: 2027 | K10: 2028 | L10: 2029
C11: $'000 | D11: $'000 | E11: $'000 | F11: $'000 | G11: $'000 | H11: $'000 | I11: $'000 | J11: $'000 | K11: =J11 -> $'000 | L11: =K11 -> $'000
B12: ASSETS
B13: Current Assets
B14: Cash and Cash Equivalents | C14: 7941.233914 | D14: 6731.672374 | E14: 6976.073606 | F14: 6636.541262 | G14: 6472.575145 | H14: 7790.989035 | I14: 6930.998207 | J14: 6451.200865 | K14: 4700.502238 | L14: 6493.616205
B15: Investments | C15: 27304 | D15: 27304 | E15: 27304 | F15: 27304 | G15: 27304 | H15: 27304 | I15: 27304 | J15: 27304 | K15: 27304 | L15: 27304
B16: Receivables | C16: 5994.056721 | D16: 6297.86955 | E16: 6630.703738 | F16: 6983.406629 | G16: 7356.259618 | H16: 7730.551919 | I16: 8127.788588 | J16: 8340.208303 | K16: 8557.93851 | L16: 8781.111973
B17: Inventories | C17: 2675 | D17: 2675 | E17: 2675 | F17: 2675 | G17: 2675 | H17: 2675 | I17: 2675 | J17: 2675 | K17: 2675 | L17: 2675
B19: Total Current Assets | C19: =SUM(C14:C17) -> 43914.29064 | D19: 43008.54192 | E19: 43585.77734 | F19: 43598.94789 | G19: 43807.83476 | H19: 45500.54095 | I19: 45037.7868 | J19: 44770.40917 | K19: 43237.44075 | L19: =SUM(L14:L17) -> 45253.72818
B21: Non-Current Assets
B22: Investments | C22: 0 | D22: =C22 -> 0 | E22: 0 | F22: 0 | G22: 0 | H22: 0 | I22: 0 | J22: 0 | K22: 0 | L22: 0
B23: Receivables | C23: 0 | D23: 0 | E23: 0 | F23: 0 | G23: 0 | H23: 0 | I23: 0 | J23: 0 | K23: 0 | L23: 1
B24: Infrastructure, Property, Plant & Equipment | C24: 894378.9825 | D24: 910066.8484 | E24: 925272.9115 | F24: 939834.3178 | G24: 957578.0328 | H24: 974209.0568 | I24: 987561.7645 | J24: 1003765.47 | K24: 1017030.847 | L24: 1029062.195
B25: Inventories | C25: 16651 | D25: 16651 | E25: 16651 | F25: 16651 | G25: 16651 | H25: 16651 | I25: 16651 | J25: 16651 | K25: 16651 | L25: 16651
B26: Investment Properties | C26: 33200.775 | D26: 34196.79825 | E26: 35222.7022 | F26: 36279.38326 | G26: 37367.76476 | H26: 38488.7977 | I26: 39643.46164 | J26: 40832.76548 | K26: 42057.74845 | L26: 43319.4809
B27: Intangibles | C27: 1060.966048 | D27: 1187.022838 | E27: 1296.324521 | F27: 1392.433523 | G27: 1478.205072 | H27: 1555.928768 | I27: 1627.441842 | J27: 1694.219773 | K27: 1757.448774 | L27: 1818.0838
B28: Total Non-Current Assets | C28: =SUM(C22:C27) -> 945291.7235 | D28: 962101.6694 | E28: 978442.9382 | F28: 994157.1346 | G28: 1013075.003 | H28: 1030904.783 | I28: 1045483.668 | J28: 1062943.455 | K28: 1077497.044 | L28: 1090851.76
B29: Total Assets | C29: =C28+C19 -> 989206.0142 | D29: 1005110.211 | E29: 1022028.716 | F29: 1037756.082 | G29: 1056882.837 | H29: 1076405.324 | I29: 1090521.455 | J29: 1107713.865 | K29: 1120734.485 | L29: 1136105.488
B31: LIABILITIES
B32: Current Liabilities
B33: Trade & Other Payables | C33: 8824.884306 | D33: 9155.506413 | E33: 9271.644074 | F33: 9503.435175 | G33: 9752.021055 | H33: 10116.82158 | I33: 10245.71712 | J33: 10501.86005 | K33: 10764.40655 | L33: 11165.51671
B34: Borrowings | C34: 4366.443589 | D34: 4095.039482 | E34: 4652.461055 | F34: 4794.020622 | G34: 3899.216686 | H34: 3923.949406 | I34: 4180.395797 | J34: 4265.10794 | K34: 3998.578865 | L34: 3998.578865
B35: Provisions | C35: 14197.94484 | D35: 13710.53512 | E35: 13802.16692 | F35: 13868.90207 | G35: 13979.83143 | H35: 15414.17386 | I35: 15420.13129 | J35: 16477.18082 | K35: 16659.5309 | L35: 19475.88324
B36: Other Current Liabilities | C36: 0 | D36: 0 | E36: 0 | F36: 0 | G36: 0 | H36: 0 | I36: 0 | J36: 0 | K36: 0 | L36: 1
B37: Total Current Liabilities | C37: =SUM(C33:C36) -> 27389.27273 | D37: 26961.08102 | E37: 27726.27205 | F37: 28166.35787 | G37: 27631.06917 | H37: 29454.94485 | I37: 29846.24421 | J37: 31244.14881 | K37: 31422.51631 | L37: =SUM(L33:L36) -> 34640.97882
B39: Non Current Liabilities
B40: Trade & Other Payables | C40: 0 | D40: 0 | E40: 0 | F40: 0 | G40: 0 | H40: 0 | I40: 0 | J40: 0 | K40: 0 | L40: 0
B41: Borrowings | C41: 21721.19095 | D41: 28626.15147 | E41: 33973.69041 | F41: 37179.66979 | G41: 43280.45311 | H41: 46356.5037 | I41: 42176.1079 | J41: 40910.99996 | K41: 36912.4211 | L41: 32913.84223
B42: Provisions | C42: 811.4293518 | D42: 1635.113495 | E42: 2510.025953 | F42: 3408.781614 | G42: 4333.724253 | H42: 5275.280327 | I42: 6251.300204 | J42: 7249.035546 | K42: 8268.591953 | L42: 9283.342127
B43: Other Non-current Liabilities | C43: 0 | D43: 0 | E43: 0 | F43: 0 | G43: 0 | H43: 0 | I43: 0 | J43: 0 | K43: 0 | L43: 1
B44: Total Non-Current Liabilities | C44: =SUM(C40:C43) -> 22532.6203 | D44: 30261.26496 | E44: 36483.71637 | F44: 40588.45141 | G44: 47614.17736 | H44: 51631.78403 | I44: 48427.40811 | J44: 48160.03551 | K44: =SUM(K40:K43) -> 45181.01305 | L44: =SUM(L40:L43) -> 42198.18436
B45: Total Liabilities | C45: =C44+C37 -> 49921.89303 | D45: 57222.34598 | E45: 64209.98842 | F45: 68754.80928 | G45: 75245.24653 | H45: 81086.72887 | I45: 78273.65231 | J45: 79404.18432 | K45: 76603.52936 | L45: =L44+L37 -> 76839.16318
B46: Net Assets | C46: =C29-C45 -> 939284.1211 | D46: 947887.8654 | E46: 957818.7271 | F46: 969001.2732 | G46: 981637.5908 | H46: 995318.5953 | I46: 1012247.803 | J46: 1028309.68 | K46: 1044130.955 | L46: =L29-L45 -> 1059266.325
B48: EQUITY
B49: Accumulated Surplus | C49: 570726.5692 | D49: 579330.3135 | E49: 589261.1752 | F49: 600442.7212 | G49: 613080.0389 | H49: 626761.0434 | I49: 643689.2506 | J49: 659752.1283 | K49: 675572.4033 | L49: 690707.7731
B50: Asset Revaluation Reserves | C50: 368559 | D50: 368559 | E50: 368559 | F50: 368559 | G50: 368559 | H50: 368558 | I50: 368559 | J50: 368558 | K50: 368559 | L50: 368560
B51: Total Equity | C51: =SUM(C49:C50) -> 939285.5692 | D51: 947889.3135 | E51: 957820.1752 | F51: 969001.7212 | G51: 981639.0389 | H51: 995319.0434 | I51: 1012248.251 | J51: 1028310.128 | K51: 1044131.403 | L51: 1059267.773
B54: Variance | C54: =C51-C46 -> 1.448062835 | D54: 1.448062835 | E54: 1.448062834 | F54: 0.4480628348 | G54: 1.448062835 | H54: 0.4480628347 | I54: 0.4480628348 | J54: 0.4480628346 | K54: 0.4480628346 | L54: 1.448062837
B56: Total Borrowings | C56: =C41+C34 -> 26087.63454 | D56: 32721.19095 | E56: 38626.15147 | F56: 41973.69041 | G56: 47179.66979 | H56: 50280.45311 | I56: 46356.5037 | J56: 45176.1079 | K56: 40910.99996 | L56: 36912.4211
B57: Total current Assets | C57: =C19 -> 43914.29064 | D57: 43008.54192 | E57: 43585.77734 | F57: 43598.94789 | G57: 43807.83476 | H57: 45500.54095 | I57: 45037.7868 | J57: 44770.40917 | K57: 43237.44075 | L57: 45253.72818
C58: =C57-C56 -> 17826.6561 | D58: =D57-D56 -> 10287.35097 | E58: 4959.625876 | F58: 1625.257478 | G58: -3371.835029 | H58: -4779.912152 | I58: -1318.716905 | J58: -405.6987352 | K58: 2326.440785 | L58: 8341.30708

Sheet Strategic - Cashflow
B7: Cashflow Statement - Strategic Scenario - Unconsolidated
B8: ='Strategic - P&L'!#REF! ->  | C8: New Projection | D8: New Projection | E8: New Projection | F8: New Projection | G8: New Projection | H8: New Projection | I8: New Projection | J8: New Projection | K8: New Projection | L8: New Projection
B10: For the period ended 30 June | C10: 2020 | D10: =C10+1 -> 2021 | E10: 2022 | F10: 2023 | G10: 2024 | H10: 2025 | I10: 2026 | J10: 2027 | K10: 2028 | L10: 2029
B11: Cash Flows from Operating Activities | C11: $'000 | D11: $'000 | E11: $'000 | F11: $'000 | G11: $'000 | H11: $'000 | I11: $'000 | J11: $'000 | K11: $'000 | L11: $'000
B12: Receipts:
B14: Rates & Annual Charges | C14: 61581.45275 | D14: 64744.30043 | E14: 68925.68705 | F14: 73403.77067 | G14: 78189.97714 | H14: 83325.70542 | I14: 88794.80885 | J14: 91363.17694 | K14: 93801.00637 | L14: 96298.78152
B15: User Charges & Fees | C15: 26455.71047 | D15: 27268.48824 | E15: 28289.11944 | F15: 29345.44643 | G15: 30421.10159 | H15: 31181.62913 | I15: 31961.16986 | J15: 32760.1991 | K15: 33579.20408 | L15: 34418.68418
B16: Interest & Investment Revenue Received | C16: 1131.125 | D16: 881.1308479 | E16: 850.8918094 | F16: 857.0018402 | G16: 848.5135316 | H16: 844.4143786 | I16: 877.3747259 | J16: 855.8749552 | K16: 843.8800216 | L16: 800.1125559
B17: Grants & Contributions | C17: 16062.91586 | D17: 16445.87121 | E17: 16838.02809 | F17: 17239.60909 | G17: 17650.84222 | H17: 18071.96104 | I17: 18503.20479 | J17: 18944.81852 | K17: 19397.05328 | L17: 19860.16618
B18: Bonds & Deposits Received
B19: Other | C19: 8282.168738 | D19: 8437.937878 | E19: 8640.538641 | F19: 8847.962411 | G19: 9060.322734 | H19: 9277.735793 | I19: 9500.32046 | J19: 9728.198365 | K19: 9961.493958 | L19: 10200.33457
B20: Payments:
B21: Employee Benefits & On-Costs | C21: -44550.48381 | D21: -46967.49024 | E21: -49959.84846 | F21: -53237.31202 | G21: -56517.54694 | H21: -60714.26918 | I21: -62250.47776 | J21: -66578.37702 | K21: -68537.26131 | L21: -73803.18349
B22: Materials & Contracts | C22: -40804.05545 | D22: -41946.56035 | E22: -42259.97436 | F22: -43429.22372 | G22: -44575.95431 | H22: -46350.35317 | I22: -46700.337 | J22: -47991.87042 | K22: -49191.66718 | L22: -51154.45886
B23: Borrowing Costs | C23: -1082.885792 | D23: -1588.490583 | E23: -1939.464435 | F23: -2173.966387 | G23: -2491.570698 | H23: -2669.180724 | I23: -2489.155603 | J23: -2458.464777 | K23: -2266.022723 | L23: -2067.931469
B24: Bonds & Deposits Refunded
B25: Other | C25: -7920.993693 | D25: -6572.133223 | E25: -5938.210613 | F25: -5911.599987 | G25: -5994.90216 | H25: -3296.515299 | I25: -6775.615499 | J25: -4600.439617 | K25: -6523.946635 | L25: -1222.748558
B26: Net Cash provided (or used in) Operating Activities | C26: ='[5]cashflow note'!C62 -> 19154.95408 | D26: ='[5]cashflow note'!D62 -> 20703.0542 | E26: ='[5]cashflow note'!E62 -> 23446.76717 | F26: ='[5]cashflow note'!F62 -> 24941.68833 | G26: ='[5]cashflow note'!G62 -> 26590.78311 | H26: ='[5]cashflow note'!H62 -> 29671.1274 | I26: ='[5]cashflow note'!I62 -> 31421.29282 | J26: ='[5]cashflow note'!J62 -> 32023.11605 | K26: ='[5]cashflow note'!K62 -> 31063.73985 | L26: ='[5]cashflow note'!L62 -> 33329.75663
B29: Cash Flows from Investing Activities
B30: Receipts:
B31: Sale of Investment Securities
B32: Sale of Investment Property
B33: Sale of Real Estate Assets | C33: 0 | D33: 0 | E33: 0 | F33: 0 | G33: 0 | H33: 0 | I33: 0 | J33: 0 | K33: 0 | L33: 0
B34: Sale of Infrastructure, Property, Plant & Equipment | C34: 250 | D34: 250 | E34: 250 | F34: 250 | G34: 250 | H34: 250 | I34: 250 | J34: 250 | K34: 250 | L34: 250
B35: Payments:
B36: Purchase of Investment Securities
B37: Purchase of Investment Property
B38: Purchase of Infrastructure, Property, Plant & Equipment | C38: -26385.046 | D38: -28375.92215 | E38: -28926.5702 | F38: -28437.23446 | G38: -31758.16532 | H38: -31239.61945 | I38: -28131.85994 | J38: -31085.15644 | K38: -28299.78535 | L38: -27276.02998
B39: Purchase of Intangible Assets | C39: -410 | D39: -420.25 | E39: -430.75625 | F39: -441.5251562 | G39: -452.5632852 | H39: -463.8773673 | I39: -475.4743015 | J39: -487.361159 | K39: -499.545188 | L39: -512.0338177
B40: Net Cash provided (or used in) Investing Activities | C40: =SUM(C31:C39) -> -26545.046 | D40: =SUM(D31:D39) -> -28546.17215 | E40: =SUM(E31:E39) -> -29107.32645 | F40: =SUM(F32:F39) -> -28628.75962 | G40: =SUM(G32:G39) -> -31960.72861 | H40: -31453.49682 | I40: -28357.33424 | J40: -31322.5176 | K40: -28549.33054 | L40: -27538.0638
B43: Cash Flows from Financing Activities
B44: Receipts:
B45: Proceeds from Borrowings & Advances | C45: 17500 | D45: 11000 | E45: 10000 | F45: 8000 | G45: 10000 | H45: 7000 | I45: 0 | J45: 3000 | K45: 0 | L45: 0
B46: Proceeds from Finance Leases
B47: Other Financing Activity Receipts
B49: Payments:
B50: Repayment of Borrowings & Advances | C50: -3851.813523 | D50: -4366.443589 | E50: -4095.039482 | F50: -4652.461055 | G50: -4794.020622 | H50: -3899.216686 | I50: -3923.949406 | J50: -4180.395797 | K50: -4265.10794 | L50: -3998.578865
B51: Net Cash Flow provided (used in) Financing Activities | C51: =SUM(C45:C50) -> 13648.18648 | D51: 6633.556411 | E51: 5904.960518 | F51: 3347.538945 | G51: 5205.979378 | H51: 3100.783314 | I51: -3923.949406 | J51: -1180.395797 | K51: -4265.10794 | L51: -3998.578865
B53: Net Increase/(Decrease) in Cash & Cash Equivalents | C53: =+C26+C40+C51 -> 6258.094554 | D53: -1209.56154 | E53: 244.401232 | F53: -339.5323438 | G53: -163.9661179 | H53: 1318.41389 | I53: -859.9908274 | J53: -479.7973422 | K53: -1750.698627 | L53: 1793.113967
B55: plus: Cash - beginning of year | C55: 1683.13936 | D55: 7941.233914 | E55: 6731.672374 | F55: 6976.073606 | G55: 6636.541262 | H55: 6472.575145 | I55: 7790.989035 | J55: 6930.998207 | K55: 6451.200865 | L55: 4700.502238
B57: Cash - end of the year | C57: =+C55+C53 -> 7941.233914 | D57: 6731.672374 | E57: 6976.073606 | F57: 6636.541262 | G57: 6472.575145 | H57: 7790.989035 | I57: 6930.998207 | J57: =+J55+J53 -> 6451.200865 | K57: =+K55+K53 -> 4700.502238 | L57: =+L55+L53 -> 6493.616205
B58: plus: Investments - end of the year | C58: 27304 | D58: 27304 | E58: 27304 | F58: 27304 | G58: 27304 | H58: 27304 | I58: 27304 | J58: 27304 | K58: 27304 | L58: 27304
B59: Total Cash & Investments - end of the year | C59: =+C57+C58 -> 35245.23391 | D59: 34035.67237 | E59: 34280.07361 | F59: 33940.54126 | G59: 33776.57514 | H59: 35094.98903 | I59: 34234.99821 | J59: 33755.20087 | K59: 32004.50224 | L59: 33797.61621
B61: Representing:
B62: - External Restrictions
B63: - Internal Restricitons
B64: - Unrestricted
B67: Less restricted Cash (NAL) | C67: 0 | D67: 0 | E67: 0 | F67: 0 | G67: 0 | H67: 0 | I67: 0 | J67: 0 | K67: 0 | L67: 0
B68: Cash, Cash Equivalents & Investments - end of the year | C68: =C59+C67 -> 35245.23391 | D68: =D59+D67 -> 34035.67237 | E68: 34280.07361 | F68: 33940.54126 | G68: 33776.57514 | H68: 35094.98903 | I68: 34234.99821 | J68: 33755.20087 | K68: 32004.50224 | L68: 33797.61621

Sheet Strategic - Ratios
B7: Ratios - Strategic Scenario - Unconsolidated
C9: ='Strategic - P&L'!C10 -> 2020 | D9: ='Strategic - P&L'!D10 -> 2021 | E9: ='Strategic - P&L'!E10 -> 2022 | F9: ='Strategic - P&L'!F10 -> 2023 | G9: ='Strategic - P&L'!G10 -> 2024 | H9: ='Strategic - P&L'!H10 -> 2025 | I9: ='Strategic - P&L'!I10 -> 2026 | J9: ='Strategic - P&L'!J10 -> 2027 | K9: ='Strategic - P&L'!K10 -> 2028 | L9: ='Strategic - P&L'!L10 -> 2029
B11: Operating Performance | C11: =(C13-C14-C15)/(C13-C14) -> 0.004305135549 | D11: =(D13-D14-D15)/(D13-D14) -> 0.01203060872 | E11: 0.02127011658 | F11: 0.0289570299 | G11: 0.03734124888 | H11: 0.04198364761 | I11: 0.06115761425 | J11: 0.0527102995 | K11: 0.04871010996 | L11: =(L13-L14-L15)/(L13-L14) -> 0.04203792187
B12: Operating Perfomance Min Target | C12: 0 | D12: 0 | E12: 0 | F12: 0 | G12: 0 | H12: 0 | I12: 0 | J12: 0 | K12: 0 | L12: 0
B13: Operating Revenue* | C13: ='Strategic - P&L'!C20+'Strategic - P&L'!C40+'Strategic - P&L'!C41+'Strategic - P&L'!C44 -> 115179.7491 | D13: ='Strategic - P&L'!D20+'Strategic - P&L'!D40+'Strategic - P&L'!D41+'Strategic - P&L'!D44 -> 120266.3814 | E13: ='Strategic - P&L'!E20+'Strategic - P&L'!E40+'Strategic - P&L'!E41+'Strategic - P&L'!E44 -> 126105.636 | F13: ='Strategic - P&L'!F20+'Strategic - P&L'!F40+'Strategic - P&L'!F41+'Strategic - P&L'!F44 -> 132319.6009 | G13: ='Strategic - P&L'!G20+'Strategic - P&L'!G40+'Strategic - P&L'!G41+'Strategic - P&L'!G44 -> 138862.1799 | H13: ='Strategic - P&L'!H20+'Strategic - P&L'!H40+'Strategic - P&L'!H41+'Strategic - P&L'!H44 -> 145440.6791 | I13: ='Strategic - P&L'!I20+'Strategic - P&L'!I40+'Strategic - P&L'!I41+'Strategic - P&L'!I44 -> 152446.3553 | J13: ='Strategic - P&L'!J20+'Strategic - P&L'!J40+'Strategic - P&L'!J41+'Strategic - P&L'!J44 -> 156325.1723 | K13: ='Strategic - P&L'!K20+'Strategic - P&L'!K40+'Strategic - P&L'!K41+'Strategic - P&L'!K44 -> 160310.0623 | L13: ='Strategic - P&L'!L20+'Strategic - P&L'!L40+'Strategic - P&L'!L41+'Strategic - P&L'!L44 -> 164362.1408
B14: Capital Grants | C14: ='Strategic - P&L'!C18 -> 5865.51 | D14: ='Strategic - P&L'!D18 -> 5982.8202 | E14: ='Strategic - P&L'!E18 -> 6102.476604 | F14: ='Strategic - P&L'!F18 -> 6224.526136 | G14: ='Strategic - P&L'!G18 -> 6349.016659 | H14: ='Strategic - P&L'!H18 -> 6475.996992 | I14: ='Strategic - P&L'!I18 -> 6605.516932 | J14: ='Strategic - P&L'!J18 -> 6737.62727 | K14: ='Strategic - P&L'!K18 -> 6872.379816 | L14: ='Strategic - P&L'!L18 -> 7009.827412
B15: Operating Expenses | C15: ='Strategic - P&L'!C29 -> 108843.6265 | D15: ='Strategic - P&L'!D29 -> 112908.6604 | E15: ='Strategic - P&L'!E29 -> 117450.6782 | F15: ='Strategic - P&L'!F29 -> 122443.7359 | G15: ='Strategic - P&L'!G29 -> 127564.9562 | H15: ='Strategic - P&L'!H29 -> 133130.4379 | I15: ='Strategic - P&L'!I29 -> 136921.5606 | J15: ='Strategic - P&L'!J29 -> 141702.7407 | K15: ='Strategic - P&L'!K29 -> 145963.7161 | L15: ='Strategic - P&L'!L29 -> 150737.5491
B17: Own Source Revenue | C17: =+C19/C20 -> 0.8419434319 | D17: 0.845087954 | E17: 0.8488048156 | F17: 0.852533438 | G17: 0.8561925794 | H17: 0.8594829023 | I17: 0.8628012808 | J17: 0.8630719358 | K17: 0.8633476442 | L17: =+L19/L20 -> 0.8635935602
B18: Own Source Revenue Min Target | C18: 0.6 | D18: 0.6 | E18: 0.6 | F18: 0.6 | G18: 0.6 | H18: 0.6 | I18: 0.6 | J18: 0.6 | K18: 0.6 | L18: 0.6
B19: Operating Revenue** | C19: ='Strategic - P&L'!C13+'Strategic - P&L'!C14+'Strategic - P&L'!C16+'Strategic - P&L'!C15+'Strategic - P&L'!C41 -> 96974.83323 | D19: ='Strategic - P&L'!D13+'Strategic - P&L'!D14+'Strategic - P&L'!D16+'Strategic - P&L'!D15+'Strategic - P&L'!D41 -> 101635.6702 | E19: ='Strategic - P&L'!E13+'Strategic - P&L'!E14+'Strategic - P&L'!E16+'Strategic - P&L'!E15+'Strategic - P&L'!E41 -> 107039.0711 | F19: ='Strategic - P&L'!F13+'Strategic - P&L'!F14+'Strategic - P&L'!F16+'Strategic - P&L'!F15+'Strategic - P&L'!F41 -> 112806.8842 | G19: ='Strategic - P&L'!G13+'Strategic - P&L'!G14+'Strategic - P&L'!G16+'Strategic - P&L'!G15+'Strategic - P&L'!G41 -> 118892.768 | H19: ='Strategic - P&L'!H13+'Strategic - P&L'!H14+'Strategic - P&L'!H16+'Strategic - P&L'!H15+'Strategic - P&L'!H41 -> 125003.777 | I19: ='Strategic - P&L'!I13+'Strategic - P&L'!I14+'Strategic - P&L'!I16+'Strategic - P&L'!I15+'Strategic - P&L'!I41 -> 131530.9106 | J19: ='Strategic - P&L'!J13+'Strategic - P&L'!J14+'Strategic - P&L'!J16+'Strategic - P&L'!J15+'Strategic - P&L'!J41 -> 134919.8691 | K19: ='Strategic - P&L'!K13+'Strategic - P&L'!K14+'Strategic - P&L'!K16+'Strategic - P&L'!K15+'Strategic - P&L'!K41 -> 138403.3146 | L19: ='Strategic - P&L'!L13+'Strategic - P&L'!L14+'Strategic - P&L'!L16+'Strategic - P&L'!L15+'Strategic - P&L'!L41 -> 141942.0863
B20: Total operating Revenue* | C20: =C13 -> 115179.7491 | D20: 120266.3814 | E20: 126105.636 | F20: 132319.6009 | G20: 138862.1799 | H20: 145440.6791 | I20: 152446.3553 | J20: 156325.1723 | K20: 160310.0623 | L20: =L13 -> 164362.1408
B22: Capital Expenditure Ratio | C22: =C24/C25 -> 1.836641375 | D22: 1.898595784 | E22: 1.804328648 | F22: 1.750827184 | G22: 1.928807887 | H22: 1.826270887 | I22: 1.625845968 | J22: 1.777479756 | K22: 1.601705158 | L22: =L24/L25 -> 1.522169097
B23: Capital Expenditure Ratio Min Target | C23: 1 | D23: 1 | E23: 1 | F23: 1 | G23: 1 | H23: 1 | I23: 1 | J23: 1 | K23: 1 | L23: 1
B24: Capital Expenditure | C24: =-'Strategic - Cashflow'!C38-'Strategic - Cashflow'!C39 -> 26795.046 | D24: =-'Strategic - Cashflow'!D38-'Strategic - Cashflow'!D39 -> 28796.17215 | E24: =-'Strategic - Cashflow'!E38-'Strategic - Cashflow'!E39 -> 29357.32645 | F24: =-'Strategic - Cashflow'!F38-'Strategic - Cashflow'!F39 -> 28878.75962 | G24: =-'Strategic - Cashflow'!G38-'Strategic - Cashflow'!G39 -> 32210.72861 | H24: =-'Strategic - Cashflow'!H38-'Strategic - Cashflow'!H39 -> 31703.49682 | I24: =-'Strategic - Cashflow'!I38-'Strategic - Cashflow'!I39 -> 28607.33424 | J24: =-'Strategic - Cashflow'!J38-'Strategic - Cashflow'!J39 -> 31572.5176 | K24: =-'Strategic - Cashflow'!K38-'Strategic - Cashflow'!K39 -> 28799.33054 | L24: =-'Strategic - Cashflow'!L38-'Strategic - Cashflow'!L39 -> 27788.0638
B25: Depreciation | C25: ='Strategic - P&L'!C26+'Strategic - P&L'!C27 -> 14589.15516 | D25: ='Strategic - P&L'!D26+'Strategic - P&L'!D27 -> 15167.08948 | E25: ='Strategic - P&L'!E26+'Strategic - P&L'!E27 -> 16270.49844 | F25: ='Strategic - P&L'!F26+'Strategic - P&L'!F27 -> 16494.35185 | G25: ='Strategic - P&L'!G26+'Strategic - P&L'!G27 -> 16699.81174 | H25: ='Strategic - P&L'!H26+'Strategic - P&L'!H27 -> 17359.6902 | I25: ='Strategic - P&L'!I26+'Strategic - P&L'!I27 -> 17595.35331 | J25: ='Strategic - P&L'!J26+'Strategic - P&L'!J27 -> 17762.51881 | K25: ='Strategic - P&L'!K26+'Strategic - P&L'!K27 -> 17980.41942 | L25: ='Strategic - P&L'!L26+'Strategic - P&L'!L27 -> 18255.56954
B27: Debt Service Coverage ratio | C27: =C28/(C29+C30) -> 2.822591995 | D27: =D28/(D29+D30) -> 2.629896317 | E27: 2.978221254 | F27: 2.825590549 | G27: 2.854882234 | H27: 3.402583411 | I27: 3.99763551 | J27: 3.734292636 | K27: 3.76818457 | L27: =L28/(L29+L30) -> 3.96772113
B28: EBITDA | C28: ='Strategic - P&L'!C37+'Strategic - P&L'!C26+'Strategic - P&L'!C27+'Strategic - P&L'!C41-'Strategic - P&L'!C19-'Strategic - P&L'!C15 -> 13928.64278 | D28: ='Strategic - P&L'!D37+'Strategic - P&L'!D26+'Strategic - P&L'!D27+'Strategic - P&L'!D41-'Strategic - P&L'!D19-'Strategic - P&L'!D15 -> 15660.85944 | E28: ='Strategic - P&L'!E37+'Strategic - P&L'!E26+'Strategic - P&L'!E27+'Strategic - P&L'!E41-'Strategic - P&L'!E19-'Strategic - P&L'!E15 -> 17972.08782 | F28: ='Strategic - P&L'!F37+'Strategic - P&L'!F26+'Strategic - P&L'!F27+'Strategic - P&L'!F41-'Strategic - P&L'!F19-'Strategic - P&L'!F15 -> 19288.68886 | G28: ='Strategic - P&L'!G37+'Strategic - P&L'!G26+'Strategic - P&L'!G27+'Strategic - P&L'!G41-'Strategic - P&L'!G19-'Strategic - P&L'!G15 -> 20799.50522 | H28: ='Strategic - P&L'!H37+'Strategic - P&L'!H26+'Strategic - P&L'!H27+'Strategic - P&L'!H41-'Strategic - P&L'!H19-'Strategic - P&L'!H15 -> 22349.52007 | I28: ='Strategic - P&L'!I37+'Strategic - P&L'!I26+'Strategic - P&L'!I27+'Strategic - P&L'!I41-'Strategic - P&L'!I19-'Strategic - P&L'!I15 -> 25637.25632 | J28: ='Strategic - P&L'!J37+'Strategic - P&L'!J26+'Strategic - P&L'!J27+'Strategic - P&L'!J41-'Strategic - P&L'!J19-'Strategic - P&L'!J15 -> 24791.44815 | K28: ='Strategic - P&L'!K37+'Strategic - P&L'!K26+'Strategic - P&L'!K27+'Strategic - P&L'!K41-'Strategic - P&L'!K19-'Strategic - P&L'!K15 -> 24610.50579 | L28: ='Strategic - P&L'!L37+'Strategic - P&L'!L26+'Strategic - P&L'!L27+'Strategic - P&L'!L41-'Strategic - P&L'!L19-'Strategic - P&L'!L15 -> 24070.22124
B29: Principal repayments | C29: =-'Strategic - Cashflow'!C50 -> 3851.813523 | D29: =-'Strategic - Cashflow'!D50 -> 4366.443589 | E29: =-'Strategic - Cashflow'!E50 -> 4095.039482 | F29: =-'Strategic - Cashflow'!F50 -> 4652.461055 | G29: =-'Strategic - Cashflow'!G50 -> 4794.020622 | H29: =-'Strategic - Cashflow'!H50 -> 3899.216686 | I29: =-'Strategic - Cashflow'!I50 -> 3923.949406 | J29: =-'Strategic - Cashflow'!J50 -> 4180.395797 | K29: =-'Strategic - Cashflow'!K50 -> 4265.10794 | L29: =-'Strategic - Cashflow'!L50 -> 3998.578865
B30: Interest expense | C30: ='Strategic - P&L'!C24 -> 1082.885792 | D30: ='Strategic - P&L'!D24 -> 1588.490583 | E30: ='Strategic - P&L'!E24 -> 1939.464435 | F30: ='Strategic - P&L'!F24 -> 2173.966387 | G30: ='Strategic - P&L'!G24 -> 2491.570698 | H30: ='Strategic - P&L'!H24 -> 2669.180724 | I30: ='Strategic - P&L'!I24 -> 2489.155603 | J30: ='Strategic - P&L'!J24 -> 2458.464777 | K30: ='Strategic - P&L'!K24 -> 2266.022723 | L30: ='Strategic - P&L'!L24 -> 2067.931469
B31: Debt Service Coverage ratio Min Target | C31: 2 | D31: 2 | E31: 2 | F31: 2 | G31: 2 | H31: 2 | I31: 2 | J31: 2 | K31: 2 | L31: 2
B33: Cash Expense Cover Ratio | C33: =C35/(C36/12) -> 4.306504497 | D33: =D35/(D36/12) -> 4.026257563 | E33: 3.948083939 | F33: 3.722756011 | G33: 3.543802966 | H33: 3.601655204 | I33: 3.363529897 | J33: 3.219647618 | K33: 2.936551947 | L33: =L35/(L36/12) -> 3.066774273
B34: Cash Expense Cover Ratio Min Target | C34: 3 | D34: 3 | E34: 3 | F34: 3 | G34: 3 | H34: 3 | I34: 3 | J34: 3 | K34: 3 | L34: 3
B35: Cash & Cash Equivalents | C35: ='Strategic - Cashflow'!C59 -> 35245.23391 | D35: ='Strategic - Cashflow'!D59 -> 34035.67237 | E35: ='Strategic - Cashflow'!E59 -> 34280.07361 | F35: ='Strategic - Cashflow'!F59 -> 33940.54126 | G35: ='Strategic - Cashflow'!G59 -> 33776.57514 | H35: ='Strategic - Cashflow'!H59 -> 35094.98903 | I35: ='Strategic - Cashflow'!I59 -> 34234.99821 | J35: ='Strategic - Cashflow'!J59 -> 33755.20087 | K35: ='Strategic - Cashflow'!K59 -> 32004.50224 | L35: ='Strategic - Cashflow'!L59 -> 33797.61621
B36: Total Expenses - Depreciation and Interest Cost | C36: =-SUM('Strategic - Cashflow'!C21:C25)-'Strategic - Cashflow'!C50 -> 98210.23227 | D36: =-SUM('Strategic - Cashflow'!D21:D25)-'Strategic - Cashflow'!D50 -> 101441.118 | E36: =-SUM('Strategic - Cashflow'!E21:E25)-'Strategic - Cashflow'!E50 -> 104192.5373 | F36: =-SUM('Strategic - Cashflow'!F21:F25)-'Strategic - Cashflow'!F50 -> 109404.5632 | G36: =-SUM('Strategic - Cashflow'!G21:G25)-'Strategic - Cashflow'!G50 -> 114373.9947 | H36: =-SUM('Strategic - Cashflow'!H21:H25)-'Strategic - Cashflow'!H50 -> 116929.5351 | I36: =-SUM('Strategic - Cashflow'!I21:I25)-'Strategic - Cashflow'!I50 -> 122139.5353 | J36: =-SUM('Strategic - Cashflow'!J21:J25)-'Strategic - Cashflow'!J50 -> 125809.5476 | K36: =-SUM('Strategic - Cashflow'!K21:K25)-'Strategic - Cashflow'!K50 -> 130784.0058 | L36: =-SUM('Strategic - Cashflow'!L21:L25)-'Strategic - Cashflow'!L50 -> 132246.9012
B38: Rates and Annual Charges Outstanding | C38: =C39/C40 -> 0.02873141309 | D38: =D39/D40 -> 0.02866143732 | E38: 0.02874603753 | F38: 0.0284876327 | G38: 0.0284101059 | H38: 0.02833104176 | I38: 0.02820248381 | J38: 0.02820732821 | K38: 0.02820583444 | L38: 0.02819691756
B39: Rates, annual and extra charges outstanding | C39: 1755.656816 | D39: 1864.372421 | E39: 1990.908051 | F39: 2101.147328 | G39: 2231.978324 | H39: 2371.308131 | I39: 2515.43722 | J39: 2583.102911 | K39: 2651.876918 | L39: 2721.649805
B40: Rates, annual and extra charges collectible | C40: ='Strategic - P&L'!C13 -> 61105.82902 | D40: ='Strategic - P&L'!D13 -> 65048.11326 | E40: ='Strategic - P&L'!E13 -> 69258.52124 | F40: ='Strategic - P&L'!F13 -> 73756.47356 | G40: ='Strategic - P&L'!G13 -> 78562.83013 | H40: ='Strategic - P&L'!H13 -> 83699.99772 | I40: ='Strategic - P&L'!I13 -> 89192.04552 | J40: ='Strategic - P&L'!J13 -> 91575.59666 | K40: ='Strategic - P&L'!K13 -> 94018.73657 | L40: ='Strategic - P&L'!L13 -> 96522.95499
B43: *Operating revenue excludes 'Investment property fair value increases' and 'Gain on sale of assets'
B44: **Operating revenue excludes all grants and contributions, 'Investment property fair value increases' and 'Gain on sale of assets'

Sheet Strategic - SS7 Ratios
B7: Special Schedule 7 Ratios - Strategic Scenario - Unconsolidated
C9: 2020 | D9: =C9+1 -> 2021 | E9: =D9+1 -> 2022 | F9: 2023 | G9: 2024 | H9: 2025 | I9: 2026 | J9: 2027 | K9: 2028 | L9: 2029
B11: Building and Infrastructure Renewals Ratio | C11: =C12/C13 -> 1.359822717 | D11: =D12/D13 -> 1.176513401 | E11: 1.132758508 | F11: 1.145241963 | G11: 1.158971507 | H11: 1.14513805 | I11: 1.157553926 | J11: 1.174132501 | K11: 1.187989885 | L11: 1.205631064
B12: Asset Renewals (Building and Infrastructure) | C12: =C16 -> 13193 | D12: =D16 -> 13555.8075 | E12: 13928.59221 | F12: 14311.62849 | G12: 14705.19828 | H12: 15109.59123 | I12: 15525.10499 | J12: 15952.04537 | K12: 16390.72662 | L12: 16841.4716
B13: Depreciation, Amortisation & Impairment | C13: =C25 -> 9702 | D13: =D25 -> 11522.01708 | E13: 12296.1709 | F13: 12496.59806 | G13: 12688.14477 | H13: 13194.5587 | I13: 13411.99285 | J13: 13586.23951 | K13: 13797.02541 | L13: 13969.00935
B15: Numerator:
B16: Asset Renewals (Building & Infrastructure) | C16: =SUM(C17:C22) -> 13193 | D16: 13555.8075 | E16: 13928.59221 | F16: 14311.62849 | G16: 14705.19828 | H16: 15109.59123 | I16: 15525.10499 | J16: 15952.04537 | K16: 16390.72662 | L16: 16841.4716
B17: - Buildings & other structures | C17: 1118 | D17: =C17*1.0275 -> 1148.745 | E17: =D17*1.0275 -> 1180.335488 | F17: 1212.794713 | G17: 1246.146568 | H17: 1280.415599 | I17: 1315.627028 | J17: 1351.806771 | K17: 1388.981457 | L17: 1427.178447
B18: - Roads & bridges | C18: 7803 | D18: =C18*1.0275 -> 8017.5825 | E18: 8238.066019 | F18: 8464.612834 | G18: 8697.389687 | H18: 8936.567904 | I18: 9182.323521 | J18: 9434.837418 | K18: 9694.295447 | L18: 9960.888572
B19: - Footpaths | C19: 488 | D19: 501.42 | E19: 515.20905 | F19: 529.3772989 | G19: 543.9351746 | H19: 558.8933919 | I19: 574.2629602 | J19: 590.0551916 | K19: 606.2817093 | L19: 622.9544564
B20: - Stormwater Drainage | C20: 2643 | D20: 2715.6825 | E20: 2790.363769 | F20: 2867.098772 | G20: 2945.943989 | H20: 3026.957448 | I20: 3110.198778 | J20: 3195.729245 | K20: 3283.611799 | L20: 3373.911123
B21: - Other Infrastructure | C21: 560 | D21: 575.4 | E21: 591.2235 | F21: 607.4821463 | G21: 624.1879053 | H21: 641.3530727 | I21: 658.9902822 | J21: 677.1125149 | K21: 695.7331091 | L21: 714.8657696
B22: - Other Open Space/Recreational Assets | C22: 581 | D22: 596.9775 | E22: 613.3943813 | F22: 630.2627267 | G22: 647.5949517 | H22: 665.4038129 | I22: 683.7024177 | J22: 702.5042342 | K22: 721.8231007 | L22: 741.6732359
B24: Denominator:
B25: Depreciation, Amortisation & Impairment | C25: =SUM(C26:C33) -> 9702 | D25: 11522.01708 | E25: 12296.1709 | F25: 12496.59806 | G25: 12688.14477 | H25: 13194.5587 | I25: 13411.99285 | J25: 13586.23951 | K25: 13797.02541 | L25: 13969.00935
B26: - Buildings | C26: 5074 | D26: =$M26*'[4]Strategic - P&L'!D$25 -> 6025.859745 | E26: =$M26*'[4]Strategic - P&L'!E$25 -> 6430.731766 | F26: =$M26*'[4]Strategic - P&L'!F$25 -> 6535.552469 | G26: =$M26*'[4]Strategic - P&L'!G$25 -> 6635.728821 | H26: =$M26*'[4]Strategic - P&L'!H$25 -> 6900.576484 | I26: =$M26*'[4]Strategic - P&L'!I$25 -> 7014.291618 | J26: =$M26*'[4]Strategic - P&L'!J$25 -> 7105.420271 | K26: =$M26*'[4]Strategic - P&L'!K$25 -> 7215.658457 | L26: =$M26*'[4]Strategic - P&L'!L$25 -> 7305.603743 | M26: 0.3582001741
B27: - Other Structures | C27: 234 | D27: =$M27*'[4]Strategic - P&L'!D$25 -> 278.3115039 | E27: =$M27*'[4]Strategic - P&L'!E$25 -> 297.011 | F27: =$M27*'[4]Strategic - P&L'!F$25 -> 301.8522689 | G27: =$M27*'[4]Strategic - P&L'!G$25 -> 306.479033 | H27: =$M27*'[4]Strategic - P&L'!H$25 -> 318.7113375 | I27: =$M27*'[4]Strategic - P&L'!I$25 -> 323.9634063 | J27: =$M27*'[4]Strategic - P&L'!J$25 -> 328.1722916 | K27: =$M27*'[4]Strategic - P&L'!K$25 -> 333.2637734 | L27: =$M27*'[4]Strategic - P&L'!L$25 -> 337.4180035 | M27: 0.01654390135
B28: - Roads | C28: 2690 | D28: =$M28*'[4]Strategic - P&L'!D$25 -> 3194.445981 | E28: =$M28*'[4]Strategic - P&L'!E$25 -> 3409.077894 | F28: =$M28*'[4]Strategic - P&L'!F$25 -> 3464.645744 | G28: =$M28*'[4]Strategic - P&L'!G$25 -> 3517.751518 | H28: =$M28*'[4]Strategic - P&L'!H$25 -> 3658.153318 | I28: =$M28*'[4]Strategic - P&L'!I$25 -> 3718.436309 | J28: =$M28*'[4]Strategic - P&L'!J$25 -> 3766.745691 | K28: =$M28*'[4]Strategic - P&L'!K$25 -> 3825.185473 | L28: =$M28*'[4]Strategic - P&L'!L$25 -> 3872.867526 | M28: 0.1898900995
B29: - Bridges | C29: 12 | D29: =$M29*'[4]Strategic - P&L'!D$25 -> 14.2520827 | E29: =$M29*'[4]Strategic - P&L'!E$25 -> 15.20966714 | F29: =$M29*'[4]Strategic - P&L'!F$25 -> 15.45758418 | G29: =$M29*'[4]Strategic - P&L'!G$25 -> 15.69451663 | H29: =$M29*'[4]Strategic - P&L'!H$25 -> 16.32092198 | I29: =$M29*'[4]Strategic - P&L'!I$25 -> 16.58987571 | J29: =$M29*'[4]Strategic - P&L'!J$25 -> 16.80540896 | K29: =$M29*'[4]Strategic - P&L'!K$25 -> 17.06613918 | L29: =$M29*'[4]Strategic - P&L'!L$25 -> 17.27887358 | M29: 0.0008471983621
B30: - Footpaths | C30: 119 | D30: =$M30*'[4]Strategic - P&L'!D$25 -> 140.9372623 | E30: =$M30*'[4]Strategic - P&L'!E$25 -> 150.4067084 | F30: =$M30*'[4]Strategic - P&L'!F$25 -> 152.8583325 | G30: =$M30*'[4]Strategic - P&L'!G$25 -> 155.2013311 | H30: =$M30*'[4]Strategic - P&L'!H$25 -> 161.395784 | I30: =$M30*'[4]Strategic - P&L'!I$25 -> 164.0554376 | J30: =$M30*'[4]Strategic - P&L'!J$25 -> 166.1868219 | K30: =$M30*'[4]Strategic - P&L'!K$25 -> 168.7651541 | L30: =$M30*'[4]Strategic - P&L'!L$25 -> 170.868861 | M30: 0.008377850469
B31: - Stormwater Drainage | C31: 188 | D31: =$M31*'[4]Strategic - P&L'!D$25 -> 223.282629 | E31: =$M31*'[4]Strategic - P&L'!E$25 -> 238.2847852 | F31: =$M31*'[4]Strategic - P&L'!F$25 -> 242.1688189 | G31: =$M31*'[4]Strategic - P&L'!G$25 -> 245.8807605 | H31: =$M31*'[4]Strategic - P&L'!H$25 -> 255.6944443 | I31: =$M31*'[4]Strategic - P&L'!I$25 -> 259.9080528 | J31: =$M31*'[4]Strategic - P&L'!J$25 -> 263.2847404 | K31: =$M31*'[4]Strategic - P&L'!K$25 -> 267.3695138 | L31: =$M31*'[4]Strategic - P&L'!L$25 -> 270.7023528 | M31: 0.01327277434
B32: - Other Open Space/Recreational Assets | C32: 1115 | D32: =$M32*'[4]Strategic - P&L'!D$25 -> 1324.651909 | E32: =$M32*'[4]Strategic - P&L'!E$25 -> 1413.654063 | F32: =$M32*'[4]Strategic - P&L'!F$25 -> 1436.696574 | G32: =$M32*'[4]Strategic - P&L'!G$25 -> 1458.718129 | H32: =$M32*'[4]Strategic - P&L'!H$25 -> 1516.939026 | I32: =$M32*'[4]Strategic - P&L'!I$25 -> 1541.936782 | J32: =$M32*'[4]Strategic - P&L'!J$25 -> 1561.969399 | K32: =$M32*'[4]Strategic - P&L'!K$25 -> 1586.202825 | L32: =$M32*'[4]Strategic - P&L'!L$25 -> 1605.975306 | M32: 0.0787423811
B33: - Other Infrastructure | C33: 270 | D33: =$M33*'[4]Strategic - P&L'!D$25 -> 320.2759696 | E33: =$M33*'[4]Strategic - P&L'!E$25 -> 341.79502 | F33: =$M33*'[4]Strategic - P&L'!F$25 -> 347.3662668 | G33: =$M33*'[4]Strategic - P&L'!G$25 -> 352.6906653 | H33: =$M33*'[4]Strategic - P&L'!H$25 -> 366.7673856 | I33: =$M33*'[4]Strategic - P&L'!I$25 -> 372.8113737 | J33: =$M33*'[4]Strategic - P&L'!J$25 -> 377.6548847 | K33: =$M33*'[4]Strategic - P&L'!K$25 -> 383.5140721 | L33: =$M33*'[4]Strategic - P&L'!L$25 -> 388.2946868 | M33: 0.01903842986
B35: Infrastructure Backlog Ratio | C35: =C36/C37 -> 0.01892672074 | D35: =D36/D37 -> 0.01848706892 | E35: 0.01869080387 | F35: 0.0185122136 | G35: 0.01713097505 | H35: 0.01684411443 | I35: 0.01708078899 | J35: 0.01727694833 | K35: 0.01752913194 | L35: 0.0178072015
B36: Estimated Cost to bring Assets to a Satisfactory Condition | C36: =C40 -> 14422.33333 | D36: 14682.9475 | E36: 15086.72856 | F36: 15171.61359 | G36: 14296.83297 | H36: 14293.99587 | I36: 14687.08076 | J36: 15090.97548 | K36: 15505.9773 | L36: 15932.39168
B37: Total (written down) value of Infrastructure, Building, Other Structure & Depreciable Land Improvement Assets | C37: =C49 -> 762009.0946 | D37: 794227.9852 | E37: 807173.8735 | F37: 819546.1611 | G37: 834560.3753 | H37: 848604.771 | I37: 859859.6218 | J37: 873474.5968 | K37: 884583.2959 | L37: 894716.2011
B39: Numerator:
B40: Estimated Cost to bring Assets to a Satisfactory Condition | C40: =SUM(C41:C46) -> 14422.33333 | D40: =SUM(D41:D46) -> 14682.9475 | E40: 15086.72856 | F40: 15171.61359 | G40: 14296.83297 | H40: 14293.99587 | I40: 14687.08076 | J40: 15090.97548 | K40: 15505.9773 | L40: 15932.39168
B41: Roads | C41: 11320.66667 | D41: =C41*1.0275 -> 11631.985 | E41: =D41*1.0275 -> 11951.86459 | F41: =E41*1.0275-243-87 -> 11950.54086 | G41: =F41*1.0275-950-342 -> 10987.18074 | H41: =G41*1.0275-396 -> 10893.32821 | I41: 11192.89473 | J41: 11500.69934 | K41: 11816.96857 | L41: 12141.93521
B42: Other Structures | C42: 2.666666667 | D42: =C42*1.0275 -> 2.74 | E42: 2.81535 | F42: 2.892772125 | G42: 2.972323358 | H42: 3.054062251 | I42: 3.138048963 | J42: 3.224345309 | K42: 3.313014805 | L42: 3.404122712
B43: Stormwater Drainage | C43: 1006 | D43: 1033.665 | E43: 1062.090788 | F43: 1091.298284 | G43: 1121.308987 | H43: 1152.144984 | I43: 1183.828971 | J43: 1216.384268 | K43: 1249.834835 | L43: 1284.205293
B44: Other Infrastructure | C44: 839.3333333 | D44: 862.415 | E44: 886.1314125 | F44: 910.5000263 | G44: 935.5387771 | H44: 961.2660934 | I44: 987.700911 | J44: 1014.862686 | K44: 1042.77141 | L44: 1071.447624
B45: Other Open Space/Recreational Assets | C45: =293-51 -> 242 | D45: =C45*1.0275-51 -> 197.655 | E45: 203.0905125 | F45: 208.6755016 | G45: 214.4140779 | H45: 220.310465 | I45: 226.3690028 | J45: 232.5941504 | K45: 238.9904895 | L45: 245.562728
B46: Buildings | C46: =1096.66666666667-85 -> 1011.666667 | D46: =C46*1.0275-85 -> 954.4875 | E46: 980.7359063 | F46: 1007.706144 | G46: 1035.418063 | H46: 1063.892059 | I46: 1093.149091 | J46: 1123.210691 | K46: 1154.098985 | L46: 1185.836707
B48: Denominator:
B49: Net carrying amount of infrastructure assets | C49: =SUM(C50:C57) -> 762009.0946 | D49: =SUM(D50:D57) -> 794227.9852 | E49: 807173.8735 | F49: 819546.1611 | G49: 834560.3753 | H49: 848604.771 | I49: 859859.6218 | J49: 873474.5968 | K49: 884583.2959 | L49: 894716.2011
B50: - Buildings | C50: =$M50*'[4]Standard - balance sheet'!C$24 -> 90274.13296 | D50: =$M50*'[4]Strategic - Balance Sheet'!D$24 -> 94091.05908 | E50: =$M50*'[4]Strategic - Balance Sheet'!E$24 -> 95624.74004 | F50: =$M50*'[4]Strategic - Balance Sheet'!F$24 -> 97090.46734 | G50: =$M50*'[4]Strategic - Balance Sheet'!G$24 -> 98869.17994 | H50: =$M50*'[4]Strategic - Balance Sheet'!H$24 -> 100532.9995 | I50: =$M50*'[4]Strategic - Balance Sheet'!I$24 -> 101866.3457 | J50: =$M50*'[4]Strategic - Balance Sheet'!J$24 -> 103479.2924 | K50: =$M50*'[4]Strategic - Balance Sheet'!K$24 -> 104795.3241 | L50: =$M50*'[4]Strategic - Balance Sheet'!L$24 -> 105995.755 | M50: 0.09957890711
B51: - Other Structures | C51: =$M51*'[4]Standard - balance sheet'!C$24 -> 3436.805516 | D51: =$M51*'[4]Strategic - Balance Sheet'!D$24 -> 3582.118822 | E51: =$M51*'[4]Strategic - Balance Sheet'!E$24 -> 3640.507233 | F51: =$M51*'[4]Strategic - Balance Sheet'!F$24 -> 3696.308596 | G51: =$M51*'[4]Strategic - Balance Sheet'!G$24 -> 3764.02555 | H51: =$M51*'[4]Strategic - Balance Sheet'!H$24 -> 3827.368438 | I51: =$M51*'[4]Strategic - Balance Sheet'!I$24 -> 3878.129949 | J51: =$M51*'[4]Strategic - Balance Sheet'!J$24 -> 3939.536068 | K51: =$M51*'[4]Strategic - Balance Sheet'!K$24 -> 3989.638407 | L51: =$M51*'[4]Strategic - Balance Sheet'!L$24 -> 4035.339732 | M51: 0.003791045408
B52: - Roads | C52: =$M52*'[4]Standard - balance sheet'!C$24 -> 407593.2796 | D52: =$M52*'[4]Strategic - Balance Sheet'!D$24 -> 424826.9365 | E52: =$M52*'[4]Strategic - Balance Sheet'!E$24 -> 431751.6006 | F52: =$M52*'[4]Strategic - Balance Sheet'!F$24 -> 438369.4498 | G52: =$M52*'[4]Strategic - Balance Sheet'!G$24 -> 446400.4469 | H52: =$M52*'[4]Strategic - Balance Sheet'!H$24 -> 453912.6949 | I52: =$M52*'[4]Strategic - Balance Sheet'!I$24 -> 459932.8351 | J52: =$M52*'[4]Strategic - Balance Sheet'!J$24 -> 467215.389 | K52: =$M52*'[4]Strategic - Balance Sheet'!K$24 -> 473157.3536 | L52: =$M52*'[4]Strategic - Balance Sheet'!L$24 -> 478577.373 | M52: 0.4496049089
B53: - Bridges | C53: =$M53*'[4]Standard - balance sheet'!C$24 -> 11417.75933 | D53: =$M53*'[4]Strategic - Balance Sheet'!D$24 -> 11900.51936 | E53: =$M53*'[4]Strategic - Balance Sheet'!E$24 -> 12094.49741 | F53: =$M53*'[4]Strategic - Balance Sheet'!F$24 -> 12279.88077 | G53: =$M53*'[4]Strategic - Balance Sheet'!G$24 -> 12504.85011 | H53: =$M53*'[4]Strategic - Balance Sheet'!H$24 -> 12715.28793 | I53: =$M53*'[4]Strategic - Balance Sheet'!I$24 -> 12883.92788 | J53: =$M53*'[4]Strategic - Balance Sheet'!J$24 -> 13087.93136 | K53: =$M53*'[4]Strategic - Balance Sheet'!K$24 -> 13254.38141 | L53: =$M53*'[4]Strategic - Balance Sheet'!L$24 -> 13406.2104 | M53: 0.01259461551
B54: - Footpaths | C54: =$M54*'[4]Standard - balance sheet'!C$24 -> 28872.45547 | D54: =$M54*'[4]Strategic - Balance Sheet'!D$24 -> 30093.22631 | E54: =$M54*'[4]Strategic - Balance Sheet'!E$24 -> 30583.74485 | F54: =$M54*'[4]Strategic - Balance Sheet'!F$24 -> 31052.5297 | G54: =$M54*'[4]Strategic - Balance Sheet'!G$24 -> 31621.41692 | H54: =$M54*'[4]Strategic - Balance Sheet'!H$24 -> 32153.55779 | I54: =$M54*'[4]Strategic - Balance Sheet'!I$24 -> 32580.00307 | J54: =$M54*'[4]Strategic - Balance Sheet'!J$24 -> 33095.87324 | K54: =$M54*'[4]Strategic - Balance Sheet'!K$24 -> 33516.78084 | L54: =$M54*'[4]Strategic - Balance Sheet'!L$24 -> 33900.7157 | M54: 0.03184840958
B55: - Stormwater Drainage | C55: =$M55*'[4]Standard - balance sheet'!C$24 -> 193092.212 | D55: =$M55*'[4]Strategic - Balance Sheet'!D$24 -> 201256.4412 | E55: =$M55*'[4]Strategic - Balance Sheet'!E$24 -> 204536.9141 | F55: =$M55*'[4]Strategic - Balance Sheet'!F$24 -> 207672.0373 | G55: =$M55*'[4]Strategic - Balance Sheet'!G$24 -> 211476.6216 | H55: =$M55*'[4]Strategic - Balance Sheet'!H$24 -> 215035.455 | I55: =$M55*'[4]Strategic - Balance Sheet'!I$24 -> 217887.421 | J55: =$M55*'[4]Strategic - Balance Sheet'!J$24 -> 221337.4397 | K55: =$M55*'[4]Strategic - Balance Sheet'!K$24 -> 224152.3711 | L55: =$M55*'[4]Strategic - Balance Sheet'!L$24 -> 226720.0374 | M55: 0.2129946953
B56: - Other Open Space/Recreational Assets | C56: =$M56*'[4]Standard - balance sheet'!C$24 -> 21523.29005 | D56: =$M56*'[4]Strategic - Balance Sheet'!D$24 -> 22433.32713 | E56: =$M56*'[4]Strategic - Balance Sheet'!E$24 -> 22798.98957 | F56: =$M56*'[4]Strategic - Balance Sheet'!F$24 -> 23148.45041 | G56: =$M56*'[4]Strategic - Balance Sheet'!G$24 -> 23572.53365 | H56: =$M56*'[4]Strategic - Balance Sheet'!H$24 -> 23969.22393 | I56: =$M56*'[4]Strategic - Balance Sheet'!I$24 -> 24287.12226 | J56: =$M56*'[4]Strategic - Balance Sheet'!J$24 -> 24671.68336 | K56: =$M56*'[4]Strategic - Balance Sheet'!K$24 -> 24985.45357 | L56: =$M56*'[4]Strategic - Balance Sheet'!L$24 -> 25271.66204 | M56: 0.02374174783
B57: - Other Infrastructure | C57: =$M57*'[4]Standard - balance sheet'!C$24 -> 5799.159621 | D57: =$M57*'[4]Strategic - Balance Sheet'!D$24 -> 6044.356812 | E57: =$M57*'[4]Strategic - Balance Sheet'!E$24 -> 6142.879616 | F57: =$M57*'[4]Strategic - Balance Sheet'!F$24 -> 6237.037115 | G57: =$M57*'[4]Strategic - Balance Sheet'!G$24 -> 6351.300614 | H57: =$M57*'[4]Strategic - Balance Sheet'!H$24 -> 6458.183449 | I57: =$M57*'[4]Strategic - Balance Sheet'!I$24 -> 6543.836858 | J57: =$M57*'[4]Strategic - Balance Sheet'!J$24 -> 6647.451649 | K57: =$M57*'[4]Strategic - Balance Sheet'!K$24 -> 6731.992791 | L57: =$M57*'[4]Strategic - Balance Sheet'!L$24 -> 6809.107796 | M57: 0.006396893089
B59: Asset Maintenance Ratio | C59: =C60/C61 -> 0.8870141025 | D59: =D60/D61 -> 0.8788019341 | E59: 0.8930253456 | F59: 0.9213520133 | G59: 0.9459119541 | H59: 0.972328019 | I59: 0.9919426383 | J59: 1.016501816 | K59: 1.039545689 | L59: 1.067202764
B60: Actual Asset Maintenance | C60: =C64 -> 10682.31084 | D60: =D64 -> 11030.89426 | E60: 11392.14261 | F60: 11933.65673 | G60: 12476.21948 | H60: 13040.4567 | I60: 13479.96131 | J60: 14032.43274 | K60: 14533.05267 | L60: 15090.60927
B61: Required Asset Maintenance | C61: =C70 -> 12043 | D61: =D70 -> 12552.19615 | E61: 12756.79651 | F61: 12952.33153 | G61: 13189.62027 | H61: 13411.58174 | I61: 13589.45648 | J61: 13804.63126 | K61: 13980.19618 | L61: 14140.33938
B63: Numerator:
B64: Actual Asset Maintenance | C64: =C66*C67 -> 10682.31084 | D64: 11030.89426 | E64: 11392.14261 | F64: 11933.65673 | G64: 12476.21948 | H64: 13040.4567 | I64: 13479.96131 | J64: 14032.43274 | K64: 14533.05267 | L64: 15090.60927
C66: ='Strategic - P&L'!C23+'Strategic - P&L'!C25 -> 85458.4867 | D66: ='Strategic - P&L'!D23+'Strategic - P&L'!D25 -> 88247.15406 | E66: ='Strategic - P&L'!E23+'Strategic - P&L'!E25 -> 91137.1409 | F66: ='Strategic - P&L'!F23+'Strategic - P&L'!F25 -> 95469.25382 | G66: ='Strategic - P&L'!G23+'Strategic - P&L'!G25 -> 99809.75588 | H66: ='Strategic - P&L'!H23+'Strategic - P&L'!H25 -> 104323.6536 | I66: ='Strategic - P&L'!I23+'Strategic - P&L'!I25 -> 107839.6905 | J66: ='Strategic - P&L'!J23+'Strategic - P&L'!J25 -> 112259.4619 | K66: ='Strategic - P&L'!K23+'Strategic - P&L'!K25 -> 116264.4214 | L66: ='Strategic - P&L'!L23+'Strategic - P&L'!L25 -> 120724.8742 | M66: <<< total salaries and materials
C67: 0.125 | D67: 0.125 | E67: 0.125 | F67: 0.125 | G67: 0.125 | H67: 0.125 | I67: 0.125 | J67: 0.125 | K67: 0.125 | L67: 0.125 | M67: <<< per centage for asset maintenance
B69: Denominator:
B70: Required Asset Maintenance | C70: =SUM(C71:C76) -> 12043 | D70: =SUM(D71:D76) -> 12552.19615 | E70: 12756.79651 | F70: 12952.33153 | G70: 13189.62027 | H70: 13411.58174 | I70: 13589.45648 | J70: 13804.63126 | K70: 13980.19618 | L70: 14140.33938
B71: - Roads | C71: 5168 | D71: =D52*$M$71 -> 5386.510813 | E71: =E52*$M$71 -> 5474.31075 | F71: 5558.220487 | G71: 5660.047958 | H71: 5755.298051 | I71: 5831.629251 | J71: 5923.966982 | K71: 5999.306971 | L71: 6068.029057 | M71: =C71/C52 -> 0.01267930621
B72: - Other structures | C72: 202 | D72: =D51*$M$72 -> 210.5408638 | E72: =E51*$M$72 -> 213.9726725 | F72: 217.2524261 | G72: 221.2325247 | H72: 224.9555353 | I72: 227.939069 | J72: 231.548245 | K72: 234.4930356 | L72: 237.1791543 | M72: =C72/C51 -> 0.05877551088
B73: - Stormwater Drainage | C73: 1220 | D73: =D55*$M$73 -> 1271.583435 | E73: =E55*$M$73 -> 1292.3102 | F73: 1312.118613 | G73: 1336.156832 | H73: 1358.642342 | I73: 1376.661704 | J73: 1398.459698 | K73: 1416.245067 | L73: 1432.46816 | M73: =C73/C55 -> 0.006318224786
B74: - Other infrastrcuture | C74: 35 | D74: =D57*$M$74 -> 36.47985264 | E74: =E57*$M$74 -> 37.07447296 | F74: 37.6427471 | G74: 38.33236814 | H74: 38.97744423 | I74: 39.49439315 | J74: 40.11974543 | K74: 40.62998142 | L74: 41.09539803 | M74: =C74/C57 -> 0.006035357239
B75: - Other Open Space/Recreational Assets | C75: 3843 | D75: =D56*$M$75 -> 4005.48782 | E75: =E56*$M$75 -> 4070.777131 | F75: 4133.173632 | G75: 4208.894022 | H75: 4279.723376 | I75: 4336.484368 | J75: 4405.148048 | K75: 4461.17196 | L75: 4512.274703 | M75: =C75/C56 -> 0.1785507695
B76: - Buidlings | C76: 1575 | D76: =D50*$M$76 -> 1641.593369 | E76: =E50*$M$76 -> 1668.351283 | F76: 1693.92362 | G76: 1724.956566 | H76: 1753.98499 | I76: 1777.247692 | J76: 1805.388544 | K76: 1828.349164 | L76: 1849.292911 | M76: =C76/C50 -> 0.01744685823

Sheet Strategic - Graphs
B7: Graphs - Strategic Scenario - Unconsolidated
B72: Special Schedule 7 Graphs - Strategic Scenario - Unconsolidated
